Workbook

Sheet Marker Feat Constants
B1: //:: Dark Sun Assassin marker feats | F1: =CONCATENATE(A1, B1, C1, D1, E1) -> //:: Dark Sun Assassin marker feats
A2: const int | B2: FEAT_ARCANIST_SPELLCASTING_ASSASSIN | C2: = | D2: 25000 | E2: ; | F2: const int FEAT_ARCANIST_SPELLCASTING_ASSASSIN = 25000;
A3: const int | B3: FEAT_ARENA_MAGE_SPELLCASTING_ASSASSIN | C3: = | D3: =SUM(D2+1) -> 25001 | E3: ; | F3: =CONCATENATE(A3, B3, C3, D3, E3) -> const int FEAT_ARENA_MAGE_SPELLCASTING_ASSASSIN = 25001;
A4: const int | B4: FEAT_CERULEAN_SPELLCASTING_ASSASSIN | C4: = | D4: =SUM(D3+1) -> 25002 | E4: ; | F4: const int FEAT_CERULEAN_SPELLCASTING_ASSASSIN = 25002;
A5: const int | B5: FEAT_CHASSEUR_SPELLCASTING_ASSASSIN | C5: = | D5: 25003 | E5: ; | F5: const int FEAT_CHASSEUR_SPELLCASTING_ASSASSIN = 25003;
A6: const int | B6: FEAT_DEAD_HEART_SPELLCASTING_ASSASSIN | C6: = | D6: 25004 | E6: ; | F6: const int FEAT_DEAD_HEART_SPELLCASTING_ASSASSIN = 25004;
A7: const int | B7: FEAT_HALFLING_PROTECTOR_SPELLCASTING_ASSASSIN | C7: = | D7: 25005 | E7: ; | F7: const int FEAT_HALFLING_PROTECTOR_SPELLCASTING_ASSASSIN = 25005;
A8: const int | B8: FEAT_NECROMANT_SPELLCASTING_ASSASSIN | C8: = | D8: 25006 | E8: ; | F8: const int FEAT_NECROMANT_SPELLCASTING_ASSASSIN = 25006;
A9: const int | B9: FEAT_RESTORATIONIST_SPELLCASTING_ASSASSIN | C9: = | D9: 25007 | E9: ; | F9: const int FEAT_RESTORATIONIST_SPELLCASTING_ASSASSIN = 25007;
A10: const int | B10: FEAT_SHADOW_WIZARD_SPELLCASTING_ASSASSIN | C10: = | D10: 25008 | E10: ; | F10: const int FEAT_SHADOW_WIZARD_SPELLCASTING_ASSASSIN = 25008;
A11: const int | B11: FEAT_VEILED_ONE_SPELLCASTING_ASSASSIN | C11: = | D11: 25009 | E11: ; | F11: const int FEAT_VEILED_ONE_SPELLCASTING_ASSASSIN = 25009;
B13: //:: Dark Sun Cleric marker feats | F13: //:: Dark Sun Cleric marker feats
A14: const int | B14: FEAT_AMBOFARI_SPELLCASTING_CLERIC | C14: = | D14: =SUM(D11+1) -> 25010 | E14: ; | F14: const int FEAT_AMBOFARI_SPELLCASTING_CLERIC = 25010;
A15: const int | B15: FEAT_BATTLE_DANCER_SPELLCASTING_CLERIC | C15: = | D15: =SUM(D14+1) -> 25011 | E15: ; | F15: const int FEAT_BATTLE_DANCER_SPELLCASTING_CLERIC = 25011;
A16: const int | B16: FEAT_BLACK_CASSOCK_SPELLCASTING_CLERIC | C16: = | D16: 25012 | E16: ; | F16: const int FEAT_BLACK_CASSOCK_SPELLCASTING_CLERIC = 25012;
A17: const int | B17: FEAT_DRAKE_GUARDIAN_SPELLCASTING_CLERIC | C17: = | D17: 25013 | E17: ; | F17: const int FEAT_DRAKE_GUARDIAN_SPELLCASTING_CLERIC = 25013;
A18: const int | B18: FEAT_ELEMENT_SINGER_SPELLCASTING_CLERIC | C18: = | D18: 25014 | E18: ; | F18: const int FEAT_ELEMENT_SINGER_SPELLCASTING_CLERIC = 25014;
A19: const int | B19: FEAT_ELEMENTAL_MASTER_SPELLCASTING_CLERIC | C19: = | D19: 25015 | E19: ; | F19: const int FEAT_ELEMENTAL_MASTER_SPELLCASTING_CLERIC = 25015;
A20: const int | B20: FEAT_ELEMENTALIST_SPELLCASTING_CLERIC | C20: = | D20: 25016 | E20: ; | F20: const int FEAT_ELEMENTALIST_SPELLCASTING_CLERIC = 25016;
A21: const int | B21: FEAT_OBSTINATE_SOUL_SPELLCASTING_CLERIC | C21: = | D21: 25017 | E21: ; | F21: const int FEAT_OBSTINATE_SOUL_SPELLCASTING_CLERIC = 25017;
B23: //:: Dark Sun Defiler marker feats | F23: //:: Dark Sun Defiler marker feats
A24: const int | B24: FEAT_ABCHAMP_SPELLCASTING_DEFILER | C24: = | D24: =SUM(D21+1) -> 25018 | E24: ; | F24: =CONCATENATE(A24, B24, C24, D24, E24) -> const int FEAT_ABCHAMP_SPELLCASTING_DEFILER = 25018;
A25: const int | B25: FEAT_ARCANIST_SPELLCASTING_DEFILER | C25: = | D25: =SUM(D24+1) -> 25019 | E25: ; | F25: const int FEAT_ARCANIST_SPELLCASTING_DEFILER = 25019;
A26: const int | B26: FEAT_ARCH_DEFILER_SPELLCASTING_DEFILER | C26: = | D26: 25020 | E26: ; | F26: const int FEAT_ARCH_DEFILER_SPELLCASTING_DEFILER = 25020;
A27: const int | B27: FEAT_ARCHMAGE_SPELLCASTING_DEFILER | C27: = | D27: 25021 | E27: ; | F27: const int FEAT_ARCHMAGE_SPELLCASTING_DEFILER = 25021;
A28: const int | B28: FEAT_ARCTRICK_SPELLCASTING_DEFILER | C28: = | D28: 25022 | E28: ; | F28: const int FEAT_ARCTRICK_SPELLCASTING_DEFILER = 25022;
A29: const int | B29: FEAT_ARENA_MAGE_SPELLCASTING_DEFILER | C29: = | D29: 25023 | E29: ; | F29: const int FEAT_ARENA_MAGE_SPELLCASTING_DEFILER = 25023;
A30: const int | B30: FEAT_BONDED_SPELLCASTING_DEFILER | C30: = | D30: 25024 | E30: ; | F30: const int FEAT_BONDED_SPELLCASTING_DEFILER = 25024;
A31: const int | B31: FEAT_CERULEAN_SPELLCASTING_DEFILER | C31: = | D31: 25025 | E31: ; | F31: const int FEAT_CERULEAN_SPELLCASTING_DEFILER = 25025;
A32: const int | B32: FEAT_CHASSEUR_SPELLCASTING_DEFILER | C32: = | D32: 25026 | E32: ; | F32: const int FEAT_CHASSEUR_SPELLCASTING_DEFILER = 25026;
A33: const int | B33: FEAT_CMANCER_SPELLCASTING_DEFILER | C33: = | D33: 25027 | E33: ; | F33: const int FEAT_CMANCER_SPELLCASTING_DEFILER = 25027;
A34: const int | B34: FEAT_DEAD_HEART_SPELLCASTING_DEFILER | C34: = | D34: 25028 | E34: ; | F34: const int FEAT_DEAD_HEART_SPELLCASTING_DEFILER = 25028;
A35: const int | B35: FEAT_ELESAVANT_SPELLCASTING_DEFILER | C35: = | D35: 25029 | E35: ; | F35: const int FEAT_ELESAVANT_SPELLCASTING_DEFILER = 25029;
A36: const int | B36: FEAT_LEECH_SPELLCASTING_DEFILER | C36: = | D36: 25030 | E36: ; | F36: const int FEAT_LEECH_SPELLCASTING_DEFILER = 25030;
A37: const int | B37: FEAT_MASTER_ALCHEMIST_SPELLCASTING_DEFILER | C37: = | D37: 25031 | E37: ; | F37: const int FEAT_MASTER_ALCHEMIST_SPELLCASTING_DEFILER = 25031;
A38: const int | B38: FEAT_MONARCHS_CHOSEN_SPELLCASTING_DEFILER | C38: = | D38: 25032 | E38: ; | F38: const int FEAT_MONARCHS_CHOSEN_SPELLCASTING_DEFILER = 25032;
A39: const int | B39: FEAT_MYRMELEON_SPELLCASTING_DEFILER | C39: = | D39: 25033 | E39: ; | F39: =CONCATENATE(A39, B39, C39, D39, E39) -> const int FEAT_MYRMELEON_SPELLCASTING_DEFILER = 25033;
A40: const int | B40: FEAT_MYSTIC_SPELLCASTING_DEFILER | C40: = | D40: 25034 | E40: ; | F40: const int FEAT_MYSTIC_SPELLCASTING_DEFILER = 25034;
A41: const int | B41: FEAT_NECROMANT_SPELLCASTING_DEFILER | C41: = | D41: 25035 | E41: ; | F41: const int FEAT_NECROMANT_SPELLCASTING_DEFILER = 25035;
A42: const int | B42: FEAT_PALEMASTER_SPELLCASTING_DEFILER | C42: = | D42: 25036 | E42: ; | F42: const int FEAT_PALEMASTER_SPELLCASTING_DEFILER = 25036;
A43: const int | B43: FEAT_ROYAL_ANIMATOR_SPELLCASTING_DEFILER | C43: = | D43: 25037 | E43: ; | F43: const int FEAT_ROYAL_ANIMATOR_SPELLCASTING_DEFILER = 25037;
A44: const int | B44: FEAT_SHADOW_WIZARD_SPELLCASTING_DEFILER | C44: = | D44: 25038 | E44: ; | F44: const int FEAT_SHADOW_WIZARD_SPELLCASTING_DEFILER = 25038;
A45: const int | B45: FEAT_SPELLSWORD_SPELLCASTING_DEFILER | C45: = | D45: 25039 | E45: ; | F45: const int FEAT_SPELLSWORD_SPELLCASTING_DEFILER = 25039;
A46: const int | B46: FEAT_TRUE_NECRO_SPELLCASTING_DEFILER | C46: = | D46: 25040 | E46: ; | F46: const int FEAT_TRUE_NECRO_SPELLCASTING_DEFILER = 25040;
A47: const int | B47: FEAT_VEILED_ONE_SPELLCASTING_DEFILER | C47: = | D47: 25041 | E47: ; | F47: const int FEAT_VEILED_ONE_SPELLCASTING_DEFILER = 25041;
A48: const int | B48: FEAT_VIRTUOSO_SPELLCASTING_DEFILER | C48: = | D48: 25042 | E48: ; | F48: const int FEAT_VIRTUOSO_SPELLCASTING_DEFILER = 25042;
B50: //:: Dark Sun Druid marker feats | F50: =CONCATENATE(A50, B50, C50, D50, E50) -> //:: Dark Sun Druid marker feats
A51: const int | B51: FEAT_AMBOFARI_SPELLCASTING_DRUID | C51: = | D51: =SUM(D48+1) -> 25043 | E51: ; | F51: const int FEAT_AMBOFARI_SPELLCASTING_DRUID = 25043;
A52: const int | B52: FEAT_DRAKE_GUARDIAN_SPELLCASTING_DRUID | C52: = | D52: =SUM(D51+1) -> 25044 | E52: ; | F52: const int FEAT_DRAKE_GUARDIAN_SPELLCASTING_DRUID = 25044;
A53: const int | B53: FEAT_GROVE_MASTER_SPELLCASTING_DRUID | C53: = | D53: 25045 | E53: ; | F53: const int FEAT_GROVE_MASTER_SPELLCASTING_DRUID = 25045;
A54: const int | B54: FEAT_OBSTINATE_SOUL_SPELLCASTING_DRUID | C54: = | D54: 25046 | E54: ; | F54: const int FEAT_OBSTINATE_SOUL_SPELLCASTING_DRUID = 25046;
A55: const int | B55: FEAT_SPIRIT_INCARNATE_SPELLCASTING_DRUID | C55: = | D55: 25047 | E55: ; | F55: const int FEAT_SPIRIT_INCARNATE_SPELLCASTING_DRUID = 25047;
B57: //:: Dark Sun Elemental Champion marker feats | F57: //:: Dark Sun Elemental Champion marker feats
A58: const int | B58: FEAT_AMBOFARI_SPELLCASTING_ELECHAMP | C58: = | D58: =SUM(D55+1) -> 25048 | E58: ; | F58: const int FEAT_AMBOFARI_SPELLCASTING_ELECHAMP = 25048;
A59: const int | B59: FEAT_BATTLE_DANCER_SPELLCASTING_ELECHAMP | C59: = | D59: =SUM(D58+1) -> 25049 | E59: ; | F59: const int FEAT_BATTLE_DANCER_SPELLCASTING_ELECHAMP = 25049;
A60: const int | B60: FEAT_BLACK_CASSOCK_SPELLCASTING_ELECHAMP | C60: = | D60: 25050 | E60: ; | F60: const int FEAT_BLACK_CASSOCK_SPELLCASTING_ELECHAMP = 25050;
A61: const int | B61: FEAT_COMBAT_MEDIC_SPELLCASTING_ELECHAMP | C61: = | D61: 25051 | E61: ; | F61: const int FEAT_COMBAT_MEDIC_SPELLCASTING_ELECHAMP = 25051;
A62: const int | B62: FEAT_DRAKE_GUARDIAN_SPELLCASTING_ELECHAMP | C62: = | D62: 25052 | E62: ; | F62: const int FEAT_DRAKE_GUARDIAN_SPELLCASTING_ELECHAMP = 25052;
A63: const int | B63: FEAT_ELEMENT_SINGER_SPELLCASTING_ELECHAMP | C63: = | D63: 25053 | E63: ; | F63: const int FEAT_ELEMENT_SINGER_SPELLCASTING_ELECHAMP = 25053;
A64: const int | B64: FEAT_ELEMENTALIST_SPELLCASTING_ELECHAMP | C64: = | D64: 25054 | E64: ; | F64: const int FEAT_ELEMENTALIST_SPELLCASTING_ELECHAMP = 25054;
A65: const int | B65: FEAT_MYSTIC_SPELLCASTING_ELECHAMP | C65: = | D65: 25055 | E65: ; | F65: const int FEAT_MYSTIC_SPELLCASTING_ELECHAMP = 25055;
A66: const int | B66: FEAT_OBSTINATE_SOUL_SPELLCASTING_ELECHAMP | C66: = | D66: 25056 | E66: ; | F66: const int FEAT_OBSTINATE_SOUL_SPELLCASTING_ELECHAMP = 25056;
A67: const int | B67: FEAT_OOZEMASTER_SPELLCASTING_ELECHAMP | C67: = | D67: 25057 | E67: ; | F67: const int FEAT_OOZEMASTER_SPELLCASTING_ELECHAMP = 25057;
A68: const int | B68: FEAT_PSYCHIC_THEURGE_SPELLCASTING_ELECHAMP | C68: = | D68: 25058 | E68: ; | F68: const int FEAT_PSYCHIC_THEURGE_SPELLCASTING_ELECHAMP = 25058;
A69: const int | B69: FEAT_TRUE_NECRO_SPELLCASTING_ELECHAMP | C69: = | D69: 25059 | E69: ; | F69: const int FEAT_TRUE_NECRO_SPELLCASTING_ELECHAMP = 25059;
A70: const int | B70: FEAT_WARPRIEST_SPELLCASTING_ELECHAMP | C70: = | D70: 25060 | E70: ; | F70: const int FEAT_WARPRIEST_SPELLCASTING_ELECHAMP = 25060;
B72: //:: Dark Sun Preserver marker feats | F72: //:: Dark Sun Preserver marker feats
A73: const int | B73: FEAT_ARCANIST_SPELLCASTING_PRESERVER | C73: = | D73: =SUM(D70+1) -> 25061 | E73: ; | F73: const int FEAT_ARCANIST_SPELLCASTING_PRESERVER = 25061;
A74: const int | B74: FEAT_ARENA_MAGE_SPELLCASTING_PRESERVER | C74: = | D74: =SUM(D73+1) -> 25062 | E74: ; | F74: const int FEAT_ARENA_MAGE_SPELLCASTING_PRESERVER = 25062;
A75: const int | B75: FEAT_CERULEAN_SPELLCASTING_PRESERVER | C75: = | D75: 25063 | E75: ; | F75: const int FEAT_CERULEAN_SPELLCASTING_PRESERVER = 25063;
A76: const int | B76: FEAT_CHASSEUR_SPELLCASTING_PRESERVER | C76: = | D76: 25064 | E76: ; | F76: const int FEAT_CHASSEUR_SPELLCASTING_PRESERVER = 25064;
A77: const int | B77: FEAT_DEAD_HEART_SPELLCASTING_PRESERVER | C77: = | D77: 25065 | E77: ; | F77: const int FEAT_DEAD_HEART_SPELLCASTING_PRESERVER = 25065;
A78: const int | B78: FEAT_EARTH_DEFENDER_SPELLCASTING_PRESERVER | C78: = | D78: 25066 | E78: ; | F78: const int FEAT_EARTH_DEFENDER_SPELLCASTING_PRESERVER = 25066;
A79: const int | B79: FEAT_HALFLING_PROTECTOR_SPELLCASTING_PRESERVER | C79: = | D79: 25067 | E79: ; | F79: const int FEAT_HALFLING_PROTECTOR_SPELLCASTING_PRESERVER = 25067;
A80: const int | B80: FEAT_NECROMANT_SPELLCASTING_PRESERVER | C80: = | D80: 25068 | E80: ; | F80: const int FEAT_NECROMANT_SPELLCASTING_PRESERVER = 25068;
A81: const int | B81: FEAT_RESTORATIONIST_SPELLCASTING_PRESERVER | C81: = | D81: 25069 | E81: ; | F81: const int FEAT_RESTORATIONIST_SPELLCASTING_PRESERVER = 25069;
A82: const int | B82: FEAT_SHADOW_WIZARD_SPELLCASTING_PRESERVER | C82: = | D82: 25070 | E82: ; | F82: =CONCATENATE(A82, B82, C82, D82, E82) -> const int FEAT_SHADOW_WIZARD_SPELLCASTING_PRESERVER = 25070;
A83: const int | B83: FEAT_VEILED_ONE_SPELLCASTING_PRESERVER | C83: = | D83: 25071 | E83: ; | F83: const int FEAT_VEILED_ONE_SPELLCASTING_PRESERVER = 25071;
B85: //:: Dark Sun Ranger marker feats | F85: //:: Dark Sun Ranger marker feats
A86: const int | B86: FEAT_AMBOFARI_SPELLCASTING_RANGER | C86: = | D86: =SUM(D83+1) -> 25072 | E86: ; | F86: const int FEAT_AMBOFARI_SPELLCASTING_RANGER = 25072;
A87: const int | B87: FEAT_BLACK_CASSOCK_SPELLCASTING_RANGER | C87: = | D87: =SUM(D86+1) -> 25073 | E87: ; | F87: const int FEAT_BLACK_CASSOCK_SPELLCASTING_RANGER = 25073;
A88: const int | B88: FEAT_DRAKE_GUARDIAN_SPELLCASTING_RANGER | C88: = | D88: 25074 | E88: ; | F88: const int FEAT_DRAKE_GUARDIAN_SPELLCASTING_RANGER = 25074;
A89: const int | B89: FEAT_OBSTINATE_SOUL_SPELLCASTING_RANGER | C89: = | D89: 25075 | E89: ; | F89: const int FEAT_OBSTINATE_SOUL_SPELLCASTING_RANGER = 25075;
A90: const int | B90: FEAT_SPIRIT_INCARNATE_SPELLCASTING_RANGER | C90: = | D90: 25076 | E90: ; | F90: const int FEAT_SPIRIT_INCARNATE_SPELLCASTING_RANGER = 25076;
B92: //:: Dark Sun Shadow Templar marker feats | F92: //:: Dark Sun Shadow Templar marker feats
A93: const int | B93: FEAT_ABCHAMP_SPELLCASTING_SHADOWTEMP | C93: = | D93: =SUM(D90+1) -> 25077 | E93: ; | F93: const int FEAT_ABCHAMP_SPELLCASTING_SHADOWTEMP = 25077;
A94: const int | B94: FEAT_ARCANIST_SPELLCASTING_SHADOWTEMP | C94: = | D94: =SUM(D93+1) -> 25078 | E94: ; | F94: const int FEAT_ARCANIST_SPELLCASTING_SHADOWTEMP = 25078;
A95: const int | B95: FEAT_ARCTRICK_SPELLCASTING_SHADOWTEMP | C95: = | D95: 25079 | E95: ; | F95: const int FEAT_ARCTRICK_SPELLCASTING_SHADOWTEMP = 25079;
A96: const int | B96: FEAT_ARCHMAGE_SPELLCASTING_SHADOWTEMP | C96: = | D96: 25080 | E96: ; | F96: const int FEAT_ARCHMAGE_SPELLCASTING_SHADOWTEMP = 25080;
A97: const int | B97: FEAT_ARENA_MAGE_SPELLCASTING_SHADOWTEMP | C97: = | D97: 25081 | E97: ; | F97: const int FEAT_ARENA_MAGE_SPELLCASTING_SHADOWTEMP = 25081;
A98: const int | B98: FEAT_CMANCER_SPELLCASTING_SHADOWTEMP | C98: = | D98: 25082 | E98: ; | F98: const int FEAT_CMANCER_SPELLCASTING_SHADOWTEMP = 25082;
A99: const int | B99: FEAT_CHASSEUR_SPELLCASTING_SHADOWTEMP | C99: = | D99: 25083 | E99: ; | F99: const int FEAT_CHASSEUR_SPELLCASTING_SHADOWTEMP = 25083;
A100: const int | B100: FEAT_DEAD_HEART_SPELLCASTING_SHADOWTEMP | C100: = | D100: 25084 | E100: ; | F100: const int FEAT_DEAD_HEART_SPELLCASTING_SHADOWTEMP = 25084;
A101: const int | B101: FEAT_ELESAVANT_SPELLCASTING_SHADOWTEMP | C101: = | D101: 25085 | E101: ; | F101: const int FEAT_ELESAVANT_SPELLCASTING_SHADOWTEMP = 25085;
A102: const int | B102: FEAT_MASTER_ALCHEMIST_SPELLCASTING_SHADOWTEMP | C102: = | D102: 25086 | E102: ; | F102: const int FEAT_MASTER_ALCHEMIST_SPELLCASTING_SHADOWTEMP = 25086;
A103: const int | B103: FEAT_MYSTIC_SPELLCASTING_SHADOWTEMP | D103: 25087
A104: const int | B104: FEAT_NECROMANT_SPELLCASTING_SHADOWTEMP | C104: = | D104: 25088 | E104: ; | F104: const int FEAT_NECROMANT_SPELLCASTING_SHADOWTEMP = 25088;
A105: const int | B105: FEAT_PALEMASTER_SPELLCASTING_SHADOWTEMP | C105: = | D105: 25089 | E105: ; | F105: const int FEAT_PALEMASTER_SPELLCASTING_SHADOWTEMP = 25089;
A106: const int | B106: FEAT_SHADOW_WIZARD_SPELLCASTING_SHADOWTEMP | C106: = | D106: 25090 | E106: ; | F106: const int FEAT_SHADOW_WIZARD_SPELLCASTING_SHADOWTEMP = 25090;
A107: const int | B107: FEAT_SPELLSWORD_SPELLCASTING_SHADOWTEMP | C107: = | D107: 25091 | E107: ; | F107: const int FEAT_SPELLSWORD_SPELLCASTING_SHADOWTEMP = 25091;
A108: const int | B108: FEAT_TRUE_NECRO_SPELLCASTING_SHADOWTEMP | C108: = | D108: 25092 | E108: ; | F108: const int FEAT_TRUE_NECRO_SPELLCASTING_SHADOWTEMP = 25092;
A109: const int | B109: FEAT_VIRTUOSO_SPELLCASTING_SHADOWTEMP | C109: = | D109: 25093 | E109: ; | F109: const int FEAT_VIRTUOSO_SPELLCASTING_SHADOWTEMP = 25093;
B111: //:: Dark Sun Templar marker feats | F111: //:: Dark Sun Templar marker feats
A112: const int | B112: FEAT_AMBOFARI_SPELLCASTING_TEMPLAR | C112: = | D112: =SUM(D109+1) -> 25094 | E112: ; | F112: const int FEAT_AMBOFARI_SPELLCASTING_TEMPLAR = 25094;
A113: const int | B113: FEAT_COMBAT_MEDIC_SPELLCASTING_TEMPLAR | C113: = | D113: =SUM(D112+1) -> 25095 | E113: ; | F113: const int FEAT_COMBAT_MEDIC_SPELLCASTING_TEMPLAR = 25095;
A114: const int | B114: FEAT_HIEROPHANT_SPELLCASTING_TEMPLAR | C114: = | D114: 25096 | E114: ; | F114: const int FEAT_HIEROPHANT_SPELLCASTING_TEMPLAR = 25096;
A115: const int | B115: FEAT_MOON_PRIEST_SPELLCASTING_TEMPLAR | C115: = | D115: 25097 | E115: ; | F115: =CONCATENATE(A115, B115, C115, D115, E115) -> const int FEAT_MOON_PRIEST_SPELLCASTING_TEMPLAR = 25097;
A116: const int | B116: FEAT_MYSTIC_SPELLCASTING_TEMPLAR | C116: = | D116: 25098 | E116: ; | F116: const int FEAT_MYSTIC_SPELLCASTING_TEMPLAR = 25098;
A117: const int | B117: FEAT_OBAS_SERVANT_SPELLCASTING_TEMPLAR | C117: = | D117: 25099 | E117: ; | F117: const int FEAT_OBAS_SERVANT_SPELLCASTING_TEMPLAR = 25099;
A118: const int | B118: FEAT_OOZEMASTER_SPELLCASTING_TEMPLAR | C118: = | D118: 25100 | E118: ; | F118: const int FEAT_OOZEMASTER_SPELLCASTING_TEMPLAR = 25100;
A119: const int | B119: FEAT_PSYCHIC_THEURGE_SPELLCASTING_TEMPLAR | C119: = | D119: 25101 | E119: ; | F119: const int FEAT_PSYCHIC_THEURGE_SPELLCASTING_TEMPLAR = 25101;
A120: const int | B120: FEAT_SERVANT_OF_BADNA_SPELLCASTING_TEMPLAR | C120: = | D120: 25102 | E120: ; | F120: const int FEAT_SERVANT_OF_BADNA_SPELLCASTING_TEMPLAR = 25102;
A121: const int | B121: FEAT_TEMPLAR_OF_THE_SCALE_SPELLCASTING_TEMPLAR | C121: = | D121: 25103 | E121: ; | F121: const int FEAT_TEMPLAR_OF_THE_SCALE_SPELLCASTING_TEMPLAR = 25103;
A122: const int | B122: FEAT_TRUE_NECRO_SPELLCASTING_TEMPLAR | C122: = | D122: 25104 | E122: ; | F122: const int FEAT_TRUE_NECRO_SPELLCASTING_TEMPLAR = 25104;
A123: const int | B123: FEAT_WARPRIEST_SPELLCASTING_TEMPLAR | C123: = | D123: 25105 | E123: ; | F123: const int FEAT_WARPRIEST_SPELLCASTING_TEMPLAR = 25105;
A124: const int | B124: FEAT_WIFE_OF_NIBENAY_SPELLCASTING_TEMPLAR | C124: = | D124: 25106 | E124: ; | F124: const int FEAT_WIFE_OF_NIBENAY_SPELLCASTING_TEMPLAR = 25106;
A125: const int | B125: FEAT_YELLOW_ROBE_SPELLCASTING_TEMPLAR | C125: = | D125: 25107 | E125: ; | F125: const int FEAT_YELLOW_ROBE_SPELLCASTING_TEMPLAR = 25107;
B127: //:: Dark Sun Templar Knight marker feats | F127: //:: Dark Sun Templar Knight marker feats
A128: const int | B128: FEAT_AMBOFARI_SPELLCASTING_TEMP_KNIGHT | C128: = | D128: =SUM(D125+1) -> 25108 | E128: ; | F128: const int FEAT_AMBOFARI_SPELLCASTING_TEMP_KNIGHT = 25108;
A129: const int | B129: FEAT_COMBAT_MEDIC_SPELLCASTING_TEMP_KNIGHT | C129: = | D129: =SUM(D128+1) -> 25109 | E129: ; | F129: const int FEAT_COMBAT_MEDIC_SPELLCASTING_TEMP_KNIGHT = 25109;
A130: const int | B130: FEAT_MYSTIC_SPELLCASTING_TEMP_KNIGHT | C130: = | D130: 25110 | E130: ; | F130: const int FEAT_MYSTIC_SPELLCASTING_TEMP_KNIGHT = 25110;
A131: const int | B131: FEAT_OOZEMASTER_SPELLCASTING_TEMP_KNIGHT | C131: = | D131: 25111 | E131: ; | F131: const int FEAT_OOZEMASTER_SPELLCASTING_TEMP_KNIGHT = 25111;
A132: const int | B132: FEAT_PSYCHIC_THEURGE_SPELLCASTING_TEMP_KNIGHT | C132: = | D132: 25112 | E132: ; | F132: const int FEAT_PSYCHIC_THEURGE_SPELLCASTING_TEMP_KNIGHT = 25112;
A133: const int | B133: FEAT_WARPRIEST_SPELLCASTING_TEMP_KNIGHT | C133: = | D133: 25113 | E133: ; | F133: const int FEAT_WARPRIEST_SPELLCASTING_TEMP_KNIGHT = 25113;
B135: //:: Dark Sun Psion marker feats | F135: =CONCATENATE(A135, B135, C135, D135, E135) -> //:: Dark Sun Psion marker feats
A136: const int | B136: FEAT_AMBOFARI_MANIFESTING_PSION | C136: = | D136: =SUM(D133+1) -> 25114 | E136: ; | F136: const int FEAT_AMBOFARI_MANIFESTING_PSION = 25114;
A137: const int | B137: FEAT_AUDITOR_MANIFESTING_PSION | C137: = | D137: =SUM(D136+1) -> 25115 | E137: ; | F137: =CONCATENATE(A137, B137, C137, D137, E137) -> const int FEAT_AUDITOR_MANIFESTING_PSION = 25115;
A138: const int | B138: FEAT_CORNAC_MANIFESTING_PSION | C138: = | D138: 25116 | E138: ; | F138: =CONCATENATE(A138, B138, C138, D138, E138) -> const int FEAT_CORNAC_MANIFESTING_PSION = 25116;
A139: const int | B139: FEAT_DEAD_HEART_MANIFESTING_PSION | C139: = | D139: 25117 | E139: ; | F139: const int FEAT_DEAD_HEART_MANIFESTING_PSION = 25117;
A140: const int | B140: FEAT_DRAKE_GUARDIAN_MANIFESTING_PSION | C140: = | D140: 25118 | E140: ; | F140: const int FEAT_DRAKE_GUARDIAN_MANIFESTING_PSION = 25118;
A141: const int | B141: FEAT_KREEN_SLAYER_MANIFESTING_PSION | C141: = | D141: 25119 | E141: ; | F141: const int FEAT_KREEN_SLAYER_MANIFESTING_PSION = 25119;
A142: const int | B142: FEAT_MASTER_SHIPFLOATER_MANIFESTING_PSION | C142: = | D142: 25120 | E142: ; | F142: const int FEAT_MASTER_SHIPFLOATER_MANIFESTING_PSION = 25120;
A143: const int | B143: FEAT_OBSTINATE_SOUL_MANIFESTING_PSION | C143: = | D143: 25121 | E143: ; | F143: const int FEAT_OBSTINATE_SOUL_MANIFESTING_PSION = 25121;
A144: const int | B144: FEAT_PSIOLOGIST_MANIFESTING_PSION | C144: = | D144: 25122 | E144: ; | F144: const int FEAT_PSIOLOGIST_MANIFESTING_PSION = 25122;
A145: const int | B145: FEAT_SCION_OF_THE_WORM_MANIFESTING_PSION | C145: = | D145: 25123 | E145: ; | F145: const int FEAT_SCION_OF_THE_WORM_MANIFESTING_PSION = 25123;
A146: const int | B146: FEAT_SENSEI_MANIFESTING_PSION | C146: = | D146: 25124 | E146: ; | F146: const int FEAT_SENSEI_MANIFESTING_PSION = 25124;
A147: const int | B147: FEAT_TATTOOIST_MANIFESTING_PSION | C147: = | D147: 25125 | E147: ; | F147: const int FEAT_TATTOOIST_MANIFESTING_PSION = 25125;
A148: const int | B148: FEAT_TEKCHAKAK_MANIFESTING_PSION | C148: = | D148: 25126 | E148: ; | F148: const int FEAT_TEKCHAKAK_MANIFESTING_PSION = 25126;
A149: const int | B149: FEAT_TRIBAL_PSIONICIST_MANIFESTING_PSION | C149: = | D149: 25127 | E149: ; | F149: const int FEAT_TRIBAL_PSIONICIST_MANIFESTING_PSION = 25127;
B151: //:: Dark Sun Psychic Rogue marker feats | F151: //:: Dark Sun Psychic Rogue marker feats
A152: const int | B152: FEAT_AMBOFARI_MANIFESTING_PSYROGUE | C152: = | D152: =SUM(D149+1) -> 25128 | E152: ; | F152: =CONCATENATE(A152, B152, C152, D152, E152) -> const int FEAT_AMBOFARI_MANIFESTING_PSYROGUE = 25128;
A153: const int | B153: FEAT_AUDITOR_MANIFESTING_PSYROGUE | C153: = | D153: =SUM(D152+1) -> 25129 | E153: ; | F153: const int FEAT_AUDITOR_MANIFESTING_PSYROGUE = 25129;
A154: const int | B154: FEAT_CORNAC_MANIFESTING_PSYROGUE | C154: = | D154: 25130 | E154: ; | F154: const int FEAT_CORNAC_MANIFESTING_PSYROGUE = 25130;
A155: const int | B155: FEAT_DEAD_HEART_MANIFESTING_PSYROGUE | C155: = | D155: 25131 | E155: ; | F155: const int FEAT_DEAD_HEART_MANIFESTING_PSYROGUE = 25131;
A156: const int | B156: FEAT_DRAKE_GUARDIAN_MANIFESTING_PSYROGUE | C156: = | D156: 25132 | E156: ; | F156: const int FEAT_DRAKE_GUARDIAN_MANIFESTING_PSYROGUE = 25132;
A157: const int | B157: FEAT_KREEN_SLAYER_MANIFESTING_PSYROGUE | C157: = | D157: 25133 | E157: ; | F157: const int FEAT_KREEN_SLAYER_MANIFESTING_PSYROGUE = 25133;
A158: const int | B158: FEAT_MASTER_SHIPFLOATER_MANIFESTING_PSYROGUE | C158: = | D158: 25134 | E158: ; | F158: const int FEAT_MASTER_SHIPFLOATER_MANIFESTING_PSYROGUE = 25134;
A159: const int | B159: FEAT_OBSTINATE_SOUL_MANIFESTING_PSYROGUE | C159: = | D159: 25135 | E159: ; | F159: const int FEAT_OBSTINATE_SOUL_MANIFESTING_PSYROGUE = 25135;
A160: const int | B160: FEAT_PSIOLOGIST_MANIFESTING_PSYROGUE | C160: = | D160: 25136 | E160: ; | F160: const int FEAT_PSIOLOGIST_MANIFESTING_PSYROGUE = 25136;
A161: const int | B161: FEAT_SCION_OF_THE_WORM_MANIFESTING_PSYROGUE | C161: = | D161: 25137 | E161: ; | F161: const int FEAT_SCION_OF_THE_WORM_MANIFESTING_PSYROGUE = 25137;
A162: const int | B162: FEAT_SENSEI_MANIFESTING_PSYROGUE | C162: = | D162: 25138 | E162: ; | F162: const int FEAT_SENSEI_MANIFESTING_PSYROGUE = 25138;
A163: const int | B163: FEAT_TATTOOIST_MANIFESTING_PSYROGUE | C163: = | D163: 25139 | E163: ; | F163: const int FEAT_TATTOOIST_MANIFESTING_PSYROGUE = 25139;
A164: const int | B164: FEAT_TEKCHAKAK_MANIFESTING_PSYROGUE | C164: = | D164: 25140 | E164: ; | F164: const int FEAT_TEKCHAKAK_MANIFESTING_PSYROGUE = 25140;
A165: const int | B165: FEAT_TRIBAL_PSIONICIST_MANIFESTING_PSYROGUE | C165: = | D165: 25141 | E165: ; | F165: const int FEAT_TRIBAL_PSIONICIST_MANIFESTING_PSYROGUE = 25141;
B167: //:: Dark Sun Psychic Warrior marker feats | F167: //:: Dark Sun Psychic Warrior marker feats
A168: const int | B168: FEAT_AMBOFARI_MANIFESTING_PSYWAR | C168: = | D168: =SUM(D165+1) -> 25142 | E168: ; | F168: const int FEAT_AMBOFARI_MANIFESTING_PSYWAR = 25142;
A169: const int | B169: FEAT_AUDITOR_MANIFESTING_PSYWAR | C169: = | D169: =SUM(D168+1) -> 25143 | E169: ; | F169: const int FEAT_AUDITOR_MANIFESTING_PSYWAR = 25143;
A170: const int | B170: FEAT_CORNAC_MANIFESTING_PSYWAR | C170: = | D170: 25144 | E170: ; | F170: const int FEAT_CORNAC_MANIFESTING_PSYWAR = 25144;
A171: const int | B171: FEAT_DEAD_HEART_MANIFESTING_PSYWAR | C171: = | D171: 25145 | E171: ; | F171: const int FEAT_DEAD_HEART_MANIFESTING_PSYWAR = 25145;
A172: const int | B172: FEAT_DRAKE_GUARDIAN_MANIFESTING_PSYWAR | C172: = | D172: 25146 | E172: ; | F172: const int FEAT_DRAKE_GUARDIAN_MANIFESTING_PSYWAR = 25146;
A173: const int | B173: FEAT_KREEN_SLAYER_MANIFESTING_PSYWAR | C173: = | D173: 25147 | E173: ; | F173: const int FEAT_KREEN_SLAYER_MANIFESTING_PSYWAR = 25147;
A174: const int | B174: FEAT_MASTER_SHIPFLOATER_MANIFESTING_PSYWAR | C174: = | D174: 25148 | E174: ; | F174: const int FEAT_MASTER_SHIPFLOATER_MANIFESTING_PSYWAR = 25148;
A175: const int | B175: FEAT_OBSTINATE_SOUL_MANIFESTING_PSYWAR | C175: = | D175: 25149 | E175: ; | F175: const int FEAT_OBSTINATE_SOUL_MANIFESTING_PSYWAR = 25149;
A176: const int | B176: FEAT_PSIOLOGIST_MANIFESTING_PSYWAR | C176: = | D176: 25150 | E176: ; | F176: const int FEAT_PSIOLOGIST_MANIFESTING_PSYWAR = 25150;
A177: const int | B177: FEAT_SCION_OF_THE_WORM_MANIFESTING_PSYWAR | C177: = | D177: 25151 | E177: ; | F177: const int FEAT_SCION_OF_THE_WORM_MANIFESTING_PSYWAR = 25151;
A178: const int | B178: FEAT_SENSEI_MANIFESTING_PSYWAR | C178: = | D178: 25152 | E178: ; | F178: const int FEAT_SENSEI_MANIFESTING_PSYWAR = 25152;
A179: const int | B179: FEAT_TATTOOIST_MANIFESTING_PSYWAR | C179: = | D179: 25153 | E179: ; | F179: const int FEAT_TATTOOIST_MANIFESTING_PSYWAR = 25153;
A180: const int | B180: FEAT_TEKCHAKAK_MANIFESTING_PSYWAR | C180: = | D180: 25154 | E180: ; | F180: const int FEAT_TEKCHAKAK_MANIFESTING_PSYWAR = 25154;
A181: const int | B181: FEAT_TRIBAL_PSIONICIST_MANIFESTING_PSYWAR | C181: = | D181: 25155 | E181: ; | F181: const int FEAT_TRIBAL_PSIONICIST_MANIFESTING_PSYWAR = 25155;
B183: //:: Dark Sun War Mind marker feats | F183: =CONCATENATE(A183, B183, C183, D183, E183) -> //:: Dark Sun War Mind marker feats
A184: const int | B184: FEAT_AMBOFARI_MANIFESTING_WARMIND | C184: = | D184: =SUM(D181+1) -> 25156 | E184: ; | F184: const int FEAT_AMBOFARI_MANIFESTING_WARMIND = 25156;
A185: const int | B185: FEAT_AUDITOR_MANIFESTING_WARMIND | C185: = | D185: =SUM(D184+1) -> 25157 | E185: ; | F185: const int FEAT_AUDITOR_MANIFESTING_WARMIND = 25157;
A186: const int | B186: FEAT_CORNAC_MANIFESTING_WARMIND | C186: = | D186: 25158 | E186: ; | F186: const int FEAT_CORNAC_MANIFESTING_WARMIND = 25158;
A187: const int | B187: FEAT_DEAD_HEART_MANIFESTING_WARMIND | C187: = | D187: 25159 | E187: ; | F187: const int FEAT_DEAD_HEART_MANIFESTING_WARMIND = 25159;
A188: const int | B188: FEAT_DRAKE_GUARDIAN_MANIFESTING_WARMIND | C188: = | D188: 25160 | E188: ; | F188: const int FEAT_DRAKE_GUARDIAN_MANIFESTING_WARMIND = 25160;
A189: const int | B189: FEAT_KREEN_SLAYER_MANIFESTING_WARMIND | C189: = | D189: 25161 | E189: ; | F189: const int FEAT_KREEN_SLAYER_MANIFESTING_WARMIND = 25161;
A190: const int | B190: FEAT_MASTER_SHIPFLOATER_MANIFESTING_WARMIND | C190: = | D190: 25162 | E190: ; | F190: const int FEAT_MASTER_SHIPFLOATER_MANIFESTING_WARMIND = 25162;
A191: const int | B191: FEAT_OBSTINATE_SOUL_MANIFESTING_WARMIND | C191: = | D191: 25163 | E191: ; | F191: const int FEAT_OBSTINATE_SOUL_MANIFESTING_WARMIND = 25163;
A192: const int | B192: FEAT_SCION_OF_THE_WORM_MANIFESTING_WARMIND | C192: = | D192: 25164 | E192: ; | F192: const int FEAT_SCION_OF_THE_WORM_MANIFESTING_WARMIND = 25164;
A193: const int | B193: FEAT_SENSEI_MANIFESTING_WARMIND | C193: = | D193: 25165 | E193: ; | F193: const int FEAT_SENSEI_MANIFESTING_WARMIND = 25165;
A194: const int | B194: FEAT_TATTOOIST_MANIFESTING_WARMIND | C194: = | D194: 25166 | E194: ; | F194: const int FEAT_TATTOOIST_MANIFESTING_WARMIND = 25166;
A195: const int | B195: FEAT_TEKCHAKAK_MANIFESTING_WARMIND | C195: = | D195: 25167 | E195: ; | F195: const int FEAT_TEKCHAKAK_MANIFESTING_WARMIND = 25167;
A196: const int | B196: FEAT_TRIBAL_PSIONICIST_MANIFESTING_WARMIND | C196: = | D196: 25168 | E196: ; | F196: const int FEAT_TRIBAL_PSIONICIST_MANIFESTING_WARMIND = 25168;
B198: //:: Dark Sun Wilder marker feats | F198: //:: Dark Sun Wilder marker feats
A199: const int | B199: FEAT_AMBOFARI_MANIFESTING_WILDER | C199: = | D199: =SUM(D196+1) -> 25169 | E199: ; | F199: =CONCATENATE(A199, B199, C199, D199, E199) -> const int FEAT_AMBOFARI_MANIFESTING_WILDER = 25169;
A200: const int | B200: FEAT_AUDITOR_MANIFESTING_WILDER | C200: = | D200: =SUM(D199+1) -> 25170 | E200: ; | F200: const int FEAT_AUDITOR_MANIFESTING_WILDER = 25170;
A201: const int | B201: FEAT_CORNAC_MANIFESTING_WILDER | C201: = | D201: 25171 | E201: ; | F201: const int FEAT_CORNAC_MANIFESTING_WILDER = 25171;
A202: const int | B202: FEAT_DEAD_HEART_MANIFESTING_WILDER | C202: = | D202: 25172 | E202: ; | F202: const int FEAT_DEAD_HEART_MANIFESTING_WILDER = 25172;
A203: const int | B203: FEAT_DRAKE_GUARDIAN_MANIFESTING_WILDER | C203: = | D203: 25173 | E203: ; | F203: const int FEAT_DRAKE_GUARDIAN_MANIFESTING_WILDER = 25173;
A204: const int | B204: FEAT_KREEN_SLAYER_MANIFESTING_WILDER | C204: = | D204: 25174 | E204: ; | F204: const int FEAT_KREEN_SLAYER_MANIFESTING_WILDER = 25174;
A205: const int | B205: FEAT_MASTER_SHIPFLOATER_MANIFESTING_WILDER | C205: = | D205: 25175 | E205: ; | F205: const int FEAT_MASTER_SHIPFLOATER_MANIFESTING_WILDER = 25175;
A206: const int | B206: FEAT_OBSTINATE_SOUL_MANIFESTING_WILDER | C206: = | D206: 25176 | E206: ; | F206: const int FEAT_OBSTINATE_SOUL_MANIFESTING_WILDER = 25176;
A207: const int | B207: FEAT_PSIOLOGIST_MANIFESTING_WILDER | C207: = | D207: 25177 | E207: ; | F207: const int FEAT_PSIOLOGIST_MANIFESTING_WILDER = 25177;
A208: const int | B208: FEAT_SCION_OF_THE_WORM_MANIFESTING_WILDER | C208: = | D208: 25178 | E208: ; | F208: const int FEAT_SCION_OF_THE_WORM_MANIFESTING_WILDER = 25178;
A209: const int | B209: FEAT_SENSEI_MANIFESTING_WILDER | C209: = | D209: 25179 | E209: ; | F209: const int FEAT_SENSEI_MANIFESTING_WILDER = 25179;
A210: const int | B210: FEAT_TATTOOIST_MANIFESTING_WILDER | C210: = | D210: 25180 | E210: ; | F210: const int FEAT_TATTOOIST_MANIFESTING_WILDER = 25180;
A211: const int | B211: FEAT_TEKCHAKAK_MANIFESTING_WILDER | C211: = | D211: 25181 | E211: ; | F211: const int FEAT_TEKCHAKAK_MANIFESTING_WILDER = 25181;
A212: const int | B212: FEAT_TRIBAL_PSIONICIST_MANIFESTING_WILDER | C212: = | D212: 25182 | E212: ; | F212: const int FEAT_TRIBAL_PSIONICIST_MANIFESTING_WILDER = 25182;
B214: //:: Dark Sun Bard marker feats | F214: =CONCATENATE(A214, B214, C214, D214, E214) -> //:: Dark Sun Bard marker feats
A215: const int | B215: FEAT_ABCHAMP_SPELLCASTING_ATHBARD | C215: = | D215: =SUM(D212+1) -> 25183 | E215: ; | F215: const int FEAT_ABCHAMP_SPELLCASTING_ATHBARD = 25183;
... 49 more rows

Sheet Marker Feat TLK Work
A1: <entry id=" | B1: 215000 | C1: " lang="en" sex="m"> | D1: Arcanist Spellcasting (Assassin) | E1: </entry> | F1: =CONCATENATE(A1,B1,C1,D1,E1) -> <entry id="215000" lang="en" sex="m">Arcanist Spellcasting (Assassin)</entry> | G1: FEAT_ARCANIST_SPELLCASTING_ASSASSIN
A2: <entry id=" | B2: 215001 | C2: " lang="en" sex="m"> | D2: Arena Mage Spellcasting (Assassin) | E2: </entry> | F2: =CONCATENATE(A2,B2,C2,D2,E2) -> <entry id="215001" lang="en" sex="m">Arena Mage Spellcasting (Assassin)</entry> | G2: FEAT_ARENA_MAGE_SPELLCASTING_ASSASSIN
A3: <entry id=" | B3: 215002 | C3: " lang="en" sex="m"> | D3: Cerulean_Spellcasting (Assassin) | E3: </entry> | F3: <entry id="215002" lang="en" sex="m">Cerulean_Spellcasting (Assassin)</entry> | G3: FEAT_CERULEAN_SPELLCASTING_ASSASSIN
A4: <entry id=" | B4: 215003 | C4: " lang="en" sex="m"> | D4: Chasseur Spellcasting (Assassin) | E4: </entry> | F4: <entry id="215003" lang="en" sex="m">Chasseur Spellcasting (Assassin)</entry> | G4: FEAT_CHASSEUR_SPELLCASTING_ASSASSIN
A5: <entry id=" | B5: 215004 | C5: " lang="en" sex="m"> | D5: Dead Heart Interrorgator Spellcasting (Assassin) | E5: </entry> | F5: =CONCATENATE(A5,B5,C5,D5,E5) -> <entry id="215004" lang="en" sex="m">Dead Heart Interrorgator Spellcasting (Assassin)</entry> | G5: FEAT_DEAD_HEART_SPELLCASTING_ASSASSIN
A6: <entry id=" | B6: 215005 | C6: " lang="en" sex="m"> | D6: Halfling Protector Spellcasting (Assassin) | E6: </entry> | F6: <entry id="215005" lang="en" sex="m">Halfling Protector Spellcasting (Assassin)</entry> | G6: FEAT_HALFLING_PROTECTOR_SPELLCASTING_ASSASSIN
A7: <entry id=" | B7: 215006 | C7: " lang="en" sex="m"> | D7: Necromant Spellcasting (Assassin) | E7: </entry> | F7: <entry id="215006" lang="en" sex="m">Necromant Spellcasting (Assassin)</entry> | G7: FEAT_NECROMANT_SPELLCASTING_ASSASSIN
A8: <entry id=" | B8: 215007 | C8: " lang="en" sex="m"> | D8: Restorationist Spellcasting (Assassin) | E8: </entry> | F8: <entry id="215007" lang="en" sex="m">Restorationist Spellcasting (Assassin)</entry> | G8: FEAT_RESTORATIONIST_SPELLCASTING_ASSASSIN
A9: <entry id=" | B9: 215008 | C9: " lang="en" sex="m"> | D9: Shadow Wizard Spellcasting (Assassin) | E9: </entry> | F9: <entry id="215008" lang="en" sex="m">Shadow Wizard Spellcasting (Assassin)</entry> | G9: FEAT_SHADOW_WIZARD_SPELLCASTING_ASSASSIN
A10: <entry id=" | B10: 215009 | C10: " lang="en" sex="m"> | D10: Veiled One Spellcasting (Assassin) | E10: </entry> | F10: <entry id="215009" lang="en" sex="m">Veiled One Spellcasting (Assassin)</entry> | G10: FEAT_VEILED_ONE_SPELLCASTING_ASSASSIN
A11: <entry id=" | B11: 215010 | C11: " lang="en" sex="m"> | D11: Ambofari Spellcasting (Cleric) | E11: </entry> | F11: <entry id="215010" lang="en" sex="m">Ambofari Spellcasting (Cleric)</entry> | G11: FEAT_AMBOFARI_SPELLCASTING_CLERIC
A12: <entry id=" | B12: 215011 | C12: " lang="en" sex="m"> | D12: Battle Dancer Spellcasting (Cleric) | E12: </entry> | F12: <entry id="215011" lang="en" sex="m">Battle Dancer Spellcasting (Cleric)</entry> | G12: FEAT_BATTLE_DANCER_SPELLCASTING_CLERIC
A13: <entry id=" | B13: 215012 | C13: " lang="en" sex="m"> | D13: Black Cassock Spellcasting (Cleric) | E13: </entry> | F13: <entry id="215012" lang="en" sex="m">Black Cassock Spellcasting (Cleric)</entry> | G13: FEAT_BLACK_CASSOCK_SPELLCASTING_CLERIC
A14: <entry id=" | B14: 215013 | C14: " lang="en" sex="m"> | D14: Drake Guardian Spellcasting (Cleric) | E14: </entry> | F14: <entry id="215013" lang="en" sex="m">Drake Guardian Spellcasting (Cleric)</entry> | G14: FEAT_DRAKE_GUARDIAN_SPELLCASTING_CLERIC
A15: <entry id=" | B15: 215014 | C15: " lang="en" sex="m"> | D15: Element Singer Spellcasting (Cleric) | E15: </entry> | F15: <entry id="215014" lang="en" sex="m">Element Singer Spellcasting (Cleric)</entry> | G15: FEAT_ELEMENT_SINGER_SPELLCASTING_CLERIC
A16: <entry id=" | B16: 215015 | C16: " lang="en" sex="m"> | D16: Elemental Master Spellcasting (Cleric) | E16: </entry> | F16: <entry id="215015" lang="en" sex="m">Elemental Master Spellcasting (Cleric)</entry> | G16: FEAT_ELEMENTAL_MASTER_SPELLCASTING_CLERIC
A17: <entry id=" | B17: 215016 | C17: " lang="en" sex="m"> | D17: Elementalist Spellcasting (Cleric) | E17: </entry> | F17: <entry id="215016" lang="en" sex="m">Elementalist Spellcasting (Cleric)</entry> | G17: FEAT_ELEMENTALIST_SPELLCASTING_CLERIC
A18: <entry id=" | B18: 215017 | C18: " lang="en" sex="m"> | D18: Obstinate Soul Spellcasting (Cleric) | E18: </entry> | F18: <entry id="215017" lang="en" sex="m">Obstinate Soul Spellcasting (Cleric)</entry> | G18: FEAT_OBSTINATE_SOUL_SPELLCASTING_CLERIC
A19: <entry id=" | B19: 215018 | C19: " lang="en" sex="m"> | D19: Abjurant Champion Spellcasting (Defiler) | E19: </entry> | F19: <entry id="215018" lang="en" sex="m">Abjurant Champion Spellcasting (Defiler)</entry> | G19: FEAT_ABCHAMP_SPELLCASTING_DEFILER
A20: <entry id=" | B20: 215019 | C20: " lang="en" sex="m"> | D20: Arcanist Spellcasting (Defiler) | E20: </entry> | F20: =CONCATENATE(A20,B20,C20,D20,E20) -> <entry id="215019" lang="en" sex="m">Arcanist Spellcasting (Defiler)</entry> | G20: FEAT_ARCANIST_SPELLCASTING_DEFILER
A21: <entry id=" | B21: 215020 | C21: " lang="en" sex="m"> | D21: Arch Defiler Spellcasting (Defiler) | E21: </entry> | F21: =CONCATENATE(A21,B21,C21,D21,E21) -> <entry id="215020" lang="en" sex="m">Arch Defiler Spellcasting (Defiler)</entry> | G21: FEAT_ARCH_DEFILER_SPELLCASTING_DEFILER
A22: <entry id=" | B22: 215021 | C22: " lang="en" sex="m"> | D22: Archmage Spellcasting (Defiler) | E22: </entry> | F22: =CONCATENATE(A22,B22,C22,D22,E22) -> <entry id="215021" lang="en" sex="m">Archmage Spellcasting (Defiler)</entry> | G22: FEAT_ARCHMAGE_SPELLCASTING_DEFILER
A23: <entry id=" | B23: 215022 | C23: " lang="en" sex="m"> | D23: Arcane Trickster Spellcasting (Defiler) | E23: </entry> | F23: <entry id="215022" lang="en" sex="m">Arcane Trickster Spellcasting (Defiler)</entry> | G23: FEAT_ARCTRICK_SPELLCASTING_DEFILER
A24: <entry id=" | B24: 215023 | C24: " lang="en" sex="m"> | D24: Arena Mage Spellcasting (Defiler) | E24: </entry> | F24: <entry id="215023" lang="en" sex="m">Arena Mage Spellcasting (Defiler)</entry> | G24: FEAT_ARENA_MAGE_SPELLCASTING_DEFILER
A25: <entry id=" | B25: 215024 | C25: " lang="en" sex="m"> | D25: Bonded Summoner Spellcasting (Defiler) | E25: </entry> | F25: <entry id="215024" lang="en" sex="m">Bonded Summoner Spellcasting (Defiler)</entry> | G25: FEAT_BONDED_SPELLCASTING_DEFILER
A26: <entry id=" | B26: 215025 | C26: " lang="en" sex="m"> | D26: Cerulean Spellcaster (Defiler) | E26: </entry> | F26: <entry id="215025" lang="en" sex="m">Cerulean Spellcaster (Defiler)</entry> | G26: FEAT_CERULEAN_SPELLCASTING_DEFILER
A27: <entry id=" | B27: 215026 | C27: " lang="en" sex="m"> | D27: Chasseur Spellcasting (Defiler) | E27: </entry> | F27: <entry id="215026" lang="en" sex="m">Chasseur Spellcasting (Defiler)</entry> | G27: FEAT_CHASSEUR_SPELLCASTING_DEFILER
A28: <entry id=" | B28: 215027 | C28: " lang="en" sex="m"> | D28: Cerebremancer Spellcasting (Defiler) | E28: </entry> | F28: =CONCATENATE(A28,B28,C28,D28,E28) -> <entry id="215027" lang="en" sex="m">Cerebremancer Spellcasting (Defiler)</entry> | G28: FEAT_CMANCER_SPELLCASTING_DEFILER
A29: <entry id=" | B29: 215028 | C29: " lang="en" sex="m"> | D29: Dead Heart Interrorgator Spellcasting (Defiler) | E29: </entry> | F29: <entry id="215028" lang="en" sex="m">Dead Heart Interrorgator Spellcasting (Defiler)</entry> | G29: FEAT_DEAD_HEART_SPELLCASTING_DEFILER
A30: <entry id=" | B30: 215029 | C30: " lang="en" sex="m"> | D30: Elemental Savant Spellcasting (Defiler) | E30: </entry> | F30: <entry id="215029" lang="en" sex="m">Elemental Savant Spellcasting (Defiler)</entry> | G30: FEAT_ELESAVANT_SPELLCASTING_DEFILER
A31: <entry id=" | B31: 215030 | C31: " lang="en" sex="m"> | D31: Leech Spellcasting (Defiler) | E31: </entry> | F31: <entry id="215030" lang="en" sex="m">Leech Spellcasting (Defiler)</entry> | G31: FEAT_LEECH_SPELLCASTING_DEFILER
A32: <entry id=" | B32: 215031 | C32: " lang="en" sex="m"> | D32: Master Alchemist Spellcasting (Defiler) | E32: </entry> | F32: <entry id="215031" lang="en" sex="m">Master Alchemist Spellcasting (Defiler)</entry> | G32: FEAT_MASTER_ALCHEMIST_SPELLCASTING_DEFILER
A33: <entry id=" | B33: 215032 | C33: " lang="en" sex="m"> | D33: Monarch's Chosen Spellcasting (Defiler) | E33: </entry> | F33: <entry id="215032" lang="en" sex="m">Monarch's Chosen Spellcasting (Defiler)</entry> | G33: FEAT_MONARCHS_CHOSEN_SPELLCASTING_DEFILER
A34: <entry id=" | B34: 215033 | C34: " lang="en" sex="m"> | D34: Myrmeleon Spellcasting (Defiler) | E34: </entry> | F34: <entry id="215033" lang="en" sex="m">Myrmeleon Spellcasting (Defiler)</entry> | G34: FEAT_MYRMELEON_SPELLCASTING_DEFILER
A35: <entry id=" | B35: 215034 | C35: " lang="en" sex="m"> | D35: Mystic Theurge Spellcasting (Defiler) | E35: </entry> | F35: =CONCATENATE(A35,B35,C35,D35,E35) -> <entry id="215034" lang="en" sex="m">Mystic Theurge Spellcasting (Defiler)</entry> | G35: FEAT_MYSTIC_SPELLCASTING_DEFILER
A36: <entry id=" | B36: 215035 | C36: " lang="en" sex="m"> | D36: Necromant Spellcasting (Defiler) | E36: </entry> | F36: <entry id="215035" lang="en" sex="m">Necromant Spellcasting (Defiler)</entry> | G36: FEAT_NECROMANT_SPELLCASTING_DEFILER
A37: <entry id=" | B37: 215036 | C37: " lang="en" sex="m"> | D37: Pale Master Spellcasting (Defiler) | E37: </entry> | F37: <entry id="215036" lang="en" sex="m">Pale Master Spellcasting (Defiler)</entry> | G37: FEAT_PALEMASTER_SPELLCASTING_DEFILER
A38: <entry id=" | B38: 215037 | C38: " lang="en" sex="m"> | D38: Royal Animator Spellcasting (Defiler) | E38: </entry> | F38: <entry id="215037" lang="en" sex="m">Royal Animator Spellcasting (Defiler)</entry> | G38: FEAT_ROYAL_ANIMATOR_SPELLCASTING_DEFILER
A39: <entry id=" | B39: 215038 | C39: " lang="en" sex="m"> | D39: Shadow Wizard Spellcasting (Defiler) | E39: </entry> | F39: <entry id="215038" lang="en" sex="m">Shadow Wizard Spellcasting (Defiler)</entry> | G39: FEAT_SHADOW_WIZARD_SPELLCASTING_DEFILER
A40: <entry id=" | B40: 215039 | C40: " lang="en" sex="m"> | D40: Spellsword Spellcasting (Defiler) | E40: </entry> | F40: =CONCATENATE(A40,B40,C40,D40,E40) -> <entry id="215039" lang="en" sex="m">Spellsword Spellcasting (Defiler)</entry> | G40: FEAT_SPELLSWORD_SPELLCASTING_DEFILER
A41: <entry id=" | B41: 215040 | C41: " lang="en" sex="m"> | D41: True Necromancer Spellcasting (Defiler) | E41: </entry> | F41: <entry id="215040" lang="en" sex="m">True Necromancer Spellcasting (Defiler)</entry> | G41: FEAT_TRUE_NECRO_SPELLCASTING_DEFILER
A42: <entry id=" | B42: 215041 | C42: " lang="en" sex="m"> | D42: Veiled One Spellcasting (Defiler) | E42: </entry> | F42: =CONCATENATE(A42,B42,C42,D42,E42) -> <entry id="215041" lang="en" sex="m">Veiled One Spellcasting (Defiler)</entry> | G42: FEAT_VEILED_ONE_SPELLCASTING_DEFILER
A43: <entry id=" | B43: 215042 | C43: " lang="en" sex="m"> | D43: Virtuoso Spellcasting (Defiler) | E43: </entry> | F43: =CONCATENATE(A43,B43,C43,D43,E43) -> <entry id="215042" lang="en" sex="m">Virtuoso Spellcasting (Defiler)</entry> | G43: FEAT_VIRTUOSO_SPELLCASTING_DEFILER
A44: <entry id=" | B44: 215043 | C44: " lang="en" sex="m"> | D44: Ambofari Spellcasting (Druid) | E44: </entry> | F44: <entry id="215043" lang="en" sex="m">Ambofari Spellcasting (Druid)</entry>
A45: <entry id=" | B45: 215044 | C45: " lang="en" sex="m"> | D45: Drake Guardian Spellcasting (Druid) | E45: </entry> | F45: <entry id="215044" lang="en" sex="m">Drake Guardian Spellcasting (Druid)</entry>
A46: <entry id=" | B46: 215045 | C46: " lang="en" sex="m"> | D46: Grove Master Spellcasting (Druid) | E46: </entry> | F46: <entry id="215045" lang="en" sex="m">Grove Master Spellcasting (Druid)</entry>
A47: <entry id=" | B47: 215046 | C47: " lang="en" sex="m"> | D47: Obstinate Soul Spellcasting (Druid) | E47: </entry> | F47: <entry id="215046" lang="en" sex="m">Obstinate Soul Spellcasting (Druid)</entry>
A48: <entry id=" | B48: 215047 | C48: " lang="en" sex="m"> | D48: Spirit Incarnate Spellcasting (Druid) | E48: </entry> | F48: <entry id="215047" lang="en" sex="m">Spirit Incarnate Spellcasting (Druid)</entry>
A49: <entry id=" | B49: 215048 | C49: " lang="en" sex="m"> | D49: Ambofari Spellcasting (Ele.Champion) | E49: </entry> | F49: <entry id="215048" lang="en" sex="m">Ambofari Spellcasting (Ele.Champion)</entry>
A50: <entry id=" | B50: 215049 | C50: " lang="en" sex="m"> | D50: Battle Dancer Spellcasting (Ele.Champion) | E50: </entry> | F50: <entry id="215049" lang="en" sex="m">Battle Dancer Spellcasting (Ele.Champion)</entry>
A51: <entry id=" | B51: 215050 | C51: " lang="en" sex="m"> | D51: Black Cassock Spellcasting (Ele.Champion) | E51: </entry> | F51: <entry id="215050" lang="en" sex="m">Black Cassock Spellcasting (Ele.Champion)</entry>
A52: <entry id=" | B52: 215051 | C52: " lang="en" sex="m"> | D52: Combat Medic Spellcasting (Ele.Champion) | E52: </entry> | F52: <entry id="215051" lang="en" sex="m">Combat Medic Spellcasting (Ele.Champion)</entry>
A53: <entry id=" | B53: 215052 | C53: " lang="en" sex="m"> | D53: Drake Guardian Spellcasting (Ele.Champion) | E53: </entry> | F53: <entry id="215052" lang="en" sex="m">Drake Guardian Spellcasting (Ele.Champion)</entry>
A54: <entry id=" | B54: 215053 | C54: " lang="en" sex="m"> | D54: Element Singer Spellcasting (Ele.Champion) | E54: </entry> | F54: <entry id="215053" lang="en" sex="m">Element Singer Spellcasting (Ele.Champion)</entry>
A55: <entry id=" | B55: 215054 | C55: " lang="en" sex="m"> | D55: Elementalist Spellcasting (Ele.Champion) | E55: </entry> | F55: <entry id="215054" lang="en" sex="m">Elementalist Spellcasting (Ele.Champion)</entry>
A56: <entry id=" | B56: 215055 | C56: " lang="en" sex="m"> | D56: Mystic Theurge Spellcasting (Ele.Champion) | E56: </entry> | F56: <entry id="215055" lang="en" sex="m">Mystic Theurge Spellcasting (Ele.Champion)</entry>
A57: <entry id=" | B57: 215056 | C57: " lang="en" sex="m"> | D57: Obstinate Soul Spellcasting (Ele.Champion) | E57: </entry> | F57: <entry id="215056" lang="en" sex="m">Obstinate Soul Spellcasting (Ele.Champion)</entry>
A58: <entry id=" | B58: 215057 | C58: " lang="en" sex="m"> | D58: Oozemaster Spellcasting (Ele.Champion) | E58: </entry> | F58: <entry id="215057" lang="en" sex="m">Oozemaster Spellcasting (Ele.Champion)</entry>
A59: <entry id=" | B59: 215058 | C59: " lang="en" sex="m"> | D59: Psychic Theurge Spellcasting (Ele.Champion) | E59: </entry> | F59: <entry id="215058" lang="en" sex="m">Psychic Theurge Spellcasting (Ele.Champion)</entry>
A60: <entry id=" | B60: 215059 | C60: " lang="en" sex="m"> | D60: True Necromancer Spellcasting (Ele.Champion) | E60: </entry> | F60: <entry id="215059" lang="en" sex="m">True Necromancer Spellcasting (Ele.Champion)</entry>
A61: <entry id=" | B61: 215060 | C61: " lang="en" sex="m"> | D61: Warpriest Spellcasting (Ele.Champion) | E61: </entry> | F61: <entry id="215060" lang="en" sex="m">Warpriest Spellcasting (Ele.Champion)</entry>
A62: <entry id=" | B62: 215061 | C62: " lang="en" sex="m"> | D62: Arcanist Spellcasting (Preserver) | E62: </entry> | F62: <entry id="215061" lang="en" sex="m">Arcanist Spellcasting (Preserver)</entry>
A63: <entry id=" | B63: 215062 | C63: " lang="en" sex="m"> | D63: Arena Mage Spellcasting (Preserver) | E63: </entry> | F63: <entry id="215062" lang="en" sex="m">Arena Mage Spellcasting (Preserver)</entry>
A64: <entry id=" | B64: 215063 | C64: " lang="en" sex="m"> | D64: Cerulean Spellcasting (Preserver) | E64: </entry> | F64: <entry id="215063" lang="en" sex="m">Cerulean Spellcasting (Preserver)</entry>
A65: <entry id=" | B65: 215064 | C65: " lang="en" sex="m"> | D65: Chasseur Spellcasting (Preserver) | E65: </entry> | F65: <entry id="215064" lang="en" sex="m">Chasseur Spellcasting (Preserver)</entry>
A66: <entry id=" | B66: 215065 | C66: " lang="en" sex="m"> | D66: Dead Heart Interrorgator Spellcasting (Preserver) | E66: </entry> | F66: <entry id="215065" lang="en" sex="m">Dead Heart Interrorgator Spellcasting (Preserver)</entry>
A67: <entry id=" | B67: 215066 | C67: " lang="en" sex="m"> | D67: Earth Defender Spellcasting (Preserver) | E67: </entry> | F67: <entry id="215066" lang="en" sex="m">Earth Defender Spellcasting (Preserver)</entry>
A68: <entry id=" | B68: 215067 | C68: " lang="en" sex="m"> | D68: Halfling Protector Spellcasting (Preserver) | E68: </entry> | F68: <entry id="215067" lang="en" sex="m">Halfling Protector Spellcasting (Preserver)</entry>
A69: <entry id=" | B69: 215068 | C69: " lang="en" sex="m"> | D69: Necromant Spellcasting (Preserver) | E69: </entry> | F69: <entry id="215068" lang="en" sex="m">Necromant Spellcasting (Preserver)</entry>
A70: <entry id=" | B70: 215069 | C70: " lang="en" sex="m"> | D70: Restorationist Spellcasting (Preserver) | E70: </entry> | F70: =CONCATENATE(A70,B70,C70,D70,E70) -> <entry id="215069" lang="en" sex="m">Restorationist Spellcasting (Preserver)</entry>
A71: <entry id=" | B71: 215070 | C71: " lang="en" sex="m"> | D71: Shadow Wizard Spellcasting (Preserver) | E71: </entry> | F71: <entry id="215070" lang="en" sex="m">Shadow Wizard Spellcasting (Preserver)</entry>
A72: <entry id=" | B72: 215071 | C72: " lang="en" sex="m"> | D72: Veiled One Spellcasting (Preserver) | E72: </entry> | F72: <entry id="215071" lang="en" sex="m">Veiled One Spellcasting (Preserver)</entry>
A73: <entry id=" | B73: 215072 | C73: " lang="en" sex="m"> | D73: Ambofari Spellcasting (Ranger) | E73: </entry> | F73: <entry id="215072" lang="en" sex="m">Ambofari Spellcasting (Ranger)</entry>
A74: <entry id=" | B74: 215073 | C74: " lang="en" sex="m"> | D74: Black Cassock Spellcasting (Ranger) | E74: </entry> | F74: <entry id="215073" lang="en" sex="m">Black Cassock Spellcasting (Ranger)</entry>
A75: <entry id=" | B75: 215074 | C75: " lang="en" sex="m"> | D75: Drake Guardian Spellcasting (Ranger) | E75: </entry> | F75: <entry id="215074" lang="en" sex="m">Drake Guardian Spellcasting (Ranger)</entry>
A76: <entry id=" | B76: 215075 | C76: " lang="en" sex="m"> | D76: Obstinate Soul Spellcasting (Ranger) | E76: </entry> | F76: =CONCATENATE(A76,B76,C76,D76,E76) -> <entry id="215075" lang="en" sex="m">Obstinate Soul Spellcasting (Ranger)</entry>
A77: <entry id=" | B77: 215076 | C77: " lang="en" sex="m"> | D77: Spirit Incarnate Spellcasting (Ranger) | E77: </entry> | F77: =CONCATENATE(A77,B77,C77,D77,E77) -> <entry id="215076" lang="en" sex="m">Spirit Incarnate Spellcasting (Ranger)</entry>
A78: <entry id=" | B78: 215077 | C78: " lang="en" sex="m"> | D78: Abjurant Champion Spellcrafting (Shadow Templar) | E78: </entry> | F78: <entry id="215077" lang="en" sex="m">Abjurant Champion Spellcrafting (Shadow Templar)</entry>
A79: <entry id=" | B79: 215078 | C79: " lang="en" sex="m"> | D79: Arcanist Spellcrafting (Shadow Templar) | E79: </entry> | F79: =CONCATENATE(A79,B79,C79,D79,E79) -> <entry id="215078" lang="en" sex="m">Arcanist Spellcrafting (Shadow Templar)</entry>
A80: <entry id=" | B80: 215079 | C80: " lang="en" sex="m"> | D80: Arcane Trickster Spellcrafting (Shadow Templar) | E80: </entry> | F80: =CONCATENATE(A80,B80,C80,D80,E80) -> <entry id="215079" lang="en" sex="m">Arcane Trickster Spellcrafting (Shadow Templar)</entry>
A81: <entry id=" | B81: 215080 | C81: " lang="en" sex="m"> | D81: Archmage Spellcrafting (Shadow Templar) | E81: </entry> | F81: <entry id="215080" lang="en" sex="m">Archmage Spellcrafting (Shadow Templar)</entry>
A82: <entry id=" | B82: 215081 | C82: " lang="en" sex="m"> | D82: Arena Mage Spellcrafting (Shadow Templar) | E82: </entry> | F82: <entry id="215081" lang="en" sex="m">Arena Mage Spellcrafting (Shadow Templar)</entry>
A83: <entry id=" | B83: 215082 | C83: " lang="en" sex="m"> | D83: Cerebremancer Spellcrafting (Shadow Templar) | E83: </entry> | F83: <entry id="215082" lang="en" sex="m">Cerebremancer Spellcrafting (Shadow Templar)</entry>
A84: <entry id=" | B84: 215083 | C84: " lang="en" sex="m"> | D84: Chasseur Spellcrafting (Shadow Templar) | E84: </entry> | F84: =CONCATENATE(A84,B84,C84,D84,E84) -> <entry id="215083" lang="en" sex="m">Chasseur Spellcrafting (Shadow Templar)</entry>
A85: <entry id=" | B85: 215084 | C85: " lang="en" sex="m"> | D85: Dead Heart Interrorgator Spellcrafting (Shadow Templar) | E85: </entry> | F85: <entry id="215084" lang="en" sex="m">Dead Heart Interrorgator Spellcrafting (Shadow Templar)</entry>
A86: <entry id=" | B86: 215085 | C86: " lang="en" sex="m"> | D86: Elemental Savant Spellcrafting (Shadow Templar) | E86: </entry> | F86: <entry id="215085" lang="en" sex="m">Elemental Savant Spellcrafting (Shadow Templar)</entry>
A87: <entry id=" | B87: 215086 | C87: " lang="en" sex="m"> | D87: Master Alchemist Spellcrafting (Shadow Templar) | E87: </entry> | F87: <entry id="215086" lang="en" sex="m">Master Alchemist Spellcrafting (Shadow Templar)</entry>
A88: <entry id=" | B88: 215087 | C88: " lang="en" sex="m"> | D88: Necromant Spellcrafting (Shadow Templar) | E88: </entry> | F88: <entry id="215087" lang="en" sex="m">Necromant Spellcrafting (Shadow Templar)</entry>
A89: <entry id=" | B89: 215088 | C89: " lang="en" sex="m"> | D89: Mystic Theurge Spellcrafting (Shadow Templar) | E89: </entry> | F89: =CONCATENATE(A89,B89,C89,D89,E89) -> <entry id="215088" lang="en" sex="m">Mystic Theurge Spellcrafting (Shadow Templar)</entry>
A90: <entry id=" | B90: 215089 | C90: " lang="en" sex="m"> | D90: Pale Master Spellcrafting (Shadow Templar) | E90: </entry> | F90: <entry id="215089" lang="en" sex="m">Pale Master Spellcrafting (Shadow Templar)</entry>
A91: <entry id=" | B91: 215090 | C91: " lang="en" sex="m"> | D91: Shadow Wizard Spellcrafting (Shadow Templar) | E91: </entry> | F91: <entry id="215090" lang="en" sex="m">Shadow Wizard Spellcrafting (Shadow Templar)</entry>
A92: <entry id=" | B92: 215091 | C92: " lang="en" sex="m"> | D92: Spellsword Spellcasting (Shadow Templar) | E92: </entry> | F92: =CONCATENATE(A92,B92,C92,D92,E92) -> <entry id="215091" lang="en" sex="m">Spellsword Spellcasting (Shadow Templar)</entry>
A93: <entry id=" | B93: 215092 | C93: " lang="en" sex="m"> | D93: True Necromancer Spellcrafting (Shadow Templar) | E93: </entry> | F93: <entry id="215092" lang="en" sex="m">True Necromancer Spellcrafting (Shadow Templar)</entry>
A94: <entry id=" | B94: 215093 | C94: " lang="en" sex="m"> | D94: Virtuoso Spellcasting (Shadow Templar) | E94: </entry> | F94: =CONCATENATE(A94,B94,C94,D94,E94) -> <entry id="215093" lang="en" sex="m">Virtuoso Spellcasting (Shadow Templar)</entry>
A95: <entry id=" | B95: 215094 | C95: " lang="en" sex="m"> | D95: Ambofari Spellcasting (Templar) | E95: </entry> | F95: <entry id="215094" lang="en" sex="m">Ambofari Spellcasting (Templar)</entry>
A96: <entry id=" | B96: 215095 | C96: " lang="en" sex="m"> | D96: Combat Medic Spellcasting (Templar) | E96: </entry> | F96: <entry id="215095" lang="en" sex="m">Combat Medic Spellcasting (Templar)</entry>
A97: <entry id=" | B97: 215096 | C97: " lang="en" sex="m"> | D97: Hierophant Spellcasting (Templar) | E97: </entry> | F97: <entry id="215096" lang="en" sex="m">Hierophant Spellcasting (Templar)</entry>
A98: <entry id=" | B98: 215097 | C98: " lang="en" sex="m"> | D98: Moon Priest Spellcasting (Templar) | E98: </entry> | F98: <entry id="215097" lang="en" sex="m">Moon Priest Spellcasting (Templar)</entry>
A99: <entry id=" | B99: 215098 | C99: " lang="en" sex="m"> | D99: Mystic Theurge Spellcasting (Templar) | E99: </entry> | F99: <entry id="215098" lang="en" sex="m">Mystic Theurge Spellcasting (Templar)</entry>
A100: <entry id=" | B100: 215099 | C100: " lang="en" sex="m"> | D100: Oba's Servant Spellcasting (Templar) | E100: </entry> | F100: <entry id="215099" lang="en" sex="m">Oba's Servant Spellcasting (Templar)</entry>
A101: <entry id=" | B101: 215100 | C101: " lang="en" sex="m"> | D101: Oozemaster Spellcasting (Templar) | E101: </entry> | F101: <entry id="215100" lang="en" sex="m">Oozemaster Spellcasting (Templar)</entry>
A102: <entry id=" | B102: 215101 | C102: " lang="en" sex="m"> | D102: Psychic Theurge Spellcasting (Templar) | E102: </entry> | F102: <entry id="215101" lang="en" sex="m">Psychic Theurge Spellcasting (Templar)</entry>
A103: <entry id=" | B103: 215102 | C103: " lang="en" sex="m"> | D103: Servant of Badna Spellcasting (Templar) | E103: </entry> | F103: <entry id="215102" lang="en" sex="m">Servant of Badna Spellcasting (Templar)</entry>
A104: <entry id=" | B104: 215103 | C104: " lang="en" sex="m"> | D104: Templar of the Scale Spellcasting (Templar) | E104: </entry> | F104: <entry id="215103" lang="en" sex="m">Templar of the Scale Spellcasting (Templar)</entry>
A105: <entry id=" | B105: 215104 | C105: " lang="en" sex="m"> | D105: True Necromancer Spellcasting (Templar) | E105: </entry> | F105: <entry id="215104" lang="en" sex="m">True Necromancer Spellcasting (Templar)</entry>
A106: <entry id=" | B106: 215105 | C106: " lang="en" sex="m"> | D106: Warpriest Spellcasting (Templar) | E106: </entry> | F106: <entry id="215105" lang="en" sex="m">Warpriest Spellcasting (Templar)</entry>
A107: <entry id=" | B107: 215106 | C107: " lang="en" sex="m"> | D107: Wife of Nibenay Spellcasting (Templar) | E107: </entry> | F107: <entry id="215106" lang="en" sex="m">Wife of Nibenay Spellcasting (Templar)</entry>
A108: <entry id=" | B108: 215107 | C108: " lang="en" sex="m"> | D108: Yellow Robe Spellcasting (Templar) | E108: </entry> | F108: <entry id="215107" lang="en" sex="m">Yellow Robe Spellcasting (Templar)</entry>
A109: <entry id=" | B109: 215108 | C109: " lang="en" sex="m"> | D109: Ambofari Spellcaster (Templar Knight) | E109: </entry> | F109: <entry id="215108" lang="en" sex="m">Ambofari Spellcaster (Templar Knight)</entry>
A110: <entry id=" | B110: 215109 | C110: " lang="en" sex="m"> | D110: Combat Medic (Templar Knight) | E110: </entry> | F110: <entry id="215109" lang="en" sex="m">Combat Medic (Templar Knight)</entry>
A111: <entry id=" | B111: 215110 | C111: " lang="en" sex="m"> | D111: Mystic Theurge (Templar Knight) | E111: </entry> | F111: <entry id="215110" lang="en" sex="m">Mystic Theurge (Templar Knight)</entry>
A112: <entry id=" | B112: 215111 | C112: " lang="en" sex="m"> | D112: Oozemaster (Templar Knight) | E112: </entry> | F112: <entry id="215111" lang="en" sex="m">Oozemaster (Templar Knight)</entry>
A113: <entry id=" | B113: 215112 | C113: " lang="en" sex="m"> | D113: Psychic Theurge (Templar Knight) | E113: </entry> | F113: <entry id="215112" lang="en" sex="m">Psychic Theurge (Templar Knight)</entry>
A114: <entry id=" | B114: 215113 | C114: " lang="en" sex="m"> | D114: Warpriest (Templar Knight) | E114: </entry> | F114: <entry id="215113" lang="en" sex="m">Warpriest (Templar Knight)</entry>
A115: <entry id=" | B115: 215114 | C115: " lang="en" sex="m"> | D115: Ambofari Manifesting (Psion) | E115: </entry> | F115: <entry id="215114" lang="en" sex="m">Ambofari Manifesting (Psion)</entry>
A116: <entry id=" | B116: 215115 | C116: " lang="en" sex="m"> | D116: Auditor Manifesting (Psion) | E116: </entry> | F116: <entry id="215115" lang="en" sex="m">Auditor Manifesting (Psion)</entry>
A117: <entry id=" | B117: 215116 | C117: " lang="en" sex="m"> | D117: Cornac Manifesting (Psion) | E117: </entry> | F117: <entry id="215116" lang="en" sex="m">Cornac Manifesting (Psion)</entry>
A118: <entry id=" | B118: 215117 | C118: " lang="en" sex="m"> | D118: Dead Heart Interrorgator Manifesting (Psion) | E118: </entry> | F118: <entry id="215117" lang="en" sex="m">Dead Heart Interrorgator Manifesting (Psion)</entry>
A119: <entry id=" | B119: 215118 | C119: " lang="en" sex="m"> | D119: Drake Guardian Manifesting (Psion) | E119: </entry> | F119: <entry id="215118" lang="en" sex="m">Drake Guardian Manifesting (Psion)</entry>
A120: <entry id=" | B120: 215119 | C120: " lang="en" sex="m"> | D120: Kreen Slayer Manifesting (Psion) | E120: </entry> | F120: <entry id="215119" lang="en" sex="m">Kreen Slayer Manifesting (Psion)</entry>
A121: <entry id=" | B121: 215120 | C121: " lang="en" sex="m"> | D121: Master Shipfloater Manifesting (Psion) | E121: </entry> | F121: <entry id="215120" lang="en" sex="m">Master Shipfloater Manifesting (Psion)</entry>
A122: <entry id=" | B122: 215121 | C122: " lang="en" sex="m"> | D122: Obstinate Soul Manifesting (Psion) | E122: </entry> | F122: <entry id="215121" lang="en" sex="m">Obstinate Soul Manifesting (Psion)</entry>
A123: <entry id=" | B123: 215122 | C123: " lang="en" sex="m"> | D123: Psiologist Manifesting (Psion) | E123: </entry> | F123: <entry id="215122" lang="en" sex="m">Psiologist Manifesting (Psion)</entry>
A124: <entry id=" | B124: 215123 | C124: " lang="en" sex="m"> | D124: Scion of the Worm Manifesting (Psion) | E124: </entry> | F124: <entry id="215123" lang="en" sex="m">Scion of the Worm Manifesting (Psion)</entry>
A125: <entry id=" | B125: 215124 | C125: " lang="en" sex="m"> | D125: Sensei Manifesting (Psion) | E125: </entry> | F125: <entry id="215124" lang="en" sex="m">Sensei Manifesting (Psion)</entry>
A126: <entry id=" | B126: 215125 | C126: " lang="en" sex="m"> | D126: Tattooist Manifesting (Psion) | E126: </entry> | F126: <entry id="215125" lang="en" sex="m">Tattooist Manifesting (Psion)</entry>
A127: <entry id=" | B127: 215126 | C127: " lang="en" sex="m"> | D127: Tekchakak Manifesting (Psion) | E127: </entry> | F127: <entry id="215126" lang="en" sex="m">Tekchakak Manifesting (Psion)</entry>
A128: <entry id=" | B128: 215127 | C128: " lang="en" sex="m"> | D128: Tribal Psionicist Manifesting (Psion) | E128: </entry> | F128: <entry id="215127" lang="en" sex="m">Tribal Psionicist Manifesting (Psion)</entry>
A129: <entry id=" | B129: 215128 | C129: " lang="en" sex="m"> | D129: Ambofari Manifesting (Psychic Warrior) | E129: </entry> | F129: =CONCATENATE(A129,B129,C129,D129,E129) -> <entry id="215128" lang="en" sex="m">Ambofari Manifesting (Psychic Warrior)</entry>
A130: <entry id=" | B130: 215129 | C130: " lang="en" sex="m"> | D130: Auditor Manifesting (Psychic Warrior) | E130: </entry> | F130: <entry id="215129" lang="en" sex="m">Auditor Manifesting (Psychic Warrior)</entry>
A131: <entry id=" | B131: 215130 | C131: " lang="en" sex="m"> | D131: Cornac Manifesting (Psychic Warrior) | E131: </entry> | F131: <entry id="215130" lang="en" sex="m">Cornac Manifesting (Psychic Warrior)</entry>
A132: <entry id=" | B132: 215131 | C132: " lang="en" sex="m"> | D132: Dead Heart Interrorgator Manifesting (Psychic Warrior) | E132: </entry> | F132: <entry id="215131" lang="en" sex="m">Dead Heart Interrorgator Manifesting (Psychic Warrior)</entry>
A133: <entry id=" | B133: 215132 | C133: " lang="en" sex="m"> | D133: Drake Guardian Manifesting (Psychic Warrior) | E133: </entry> | F133: <entry id="215132" lang="en" sex="m">Drake Guardian Manifesting (Psychic Warrior)</entry>
A134: <entry id=" | B134: 215133 | C134: " lang="en" sex="m"> | D134: Kreen Slayer Manifesting (Psychic Warrior) | E134: </entry> | F134: <entry id="215133" lang="en" sex="m">Kreen Slayer Manifesting (Psychic Warrior)</entry>
A135: <entry id=" | B135: 215134 | C135: " lang="en" sex="m"> | D135: Master Shipfloater Manifesting (Psychic Warrior) | E135: </entry> | F135: <entry id="215134" lang="en" sex="m">Master Shipfloater Manifesting (Psychic Warrior)</entry>
A136: <entry id=" | B136: 215135 | C136: " lang="en" sex="m"> | D136: Obstinate Soul Manifesting (Psychic Warrior) | E136: </entry> | F136: <entry id="215135" lang="en" sex="m">Obstinate Soul Manifesting (Psychic Warrior)</entry>
A137: <entry id=" | B137: 215136 | C137: " lang="en" sex="m"> | D137: Psiologist Manifesting (Psychic Warrior) | E137: </entry> | F137: <entry id="215136" lang="en" sex="m">Psiologist Manifesting (Psychic Warrior)</entry>
A138: <entry id=" | B138: 215137 | C138: " lang="en" sex="m"> | D138: Scion of the Worm Manifesting (Psychic Warrior) | E138: </entry> | F138: <entry id="215137" lang="en" sex="m">Scion of the Worm Manifesting (Psychic Warrior)</entry>
A139: <entry id=" | B139: 215138 | C139: " lang="en" sex="m"> | D139: Sensei Manifesting (Psychic Warrior) | E139: </entry> | F139: <entry id="215138" lang="en" sex="m">Sensei Manifesting (Psychic Warrior)</entry>
A140: <entry id=" | B140: 215139 | C140: " lang="en" sex="m"> | D140: Tattooist Manifesting (Psychic Warrior) | E140: </entry> | F140: <entry id="215139" lang="en" sex="m">Tattooist Manifesting (Psychic Warrior)</entry>
A141: <entry id=" | B141: 215140 | C141: " lang="en" sex="m"> | D141: Tekchakak Manifesting (Psychic Warrior) | E141: </entry> | F141: <entry id="215140" lang="en" sex="m">Tekchakak Manifesting (Psychic Warrior)</entry>
A142: <entry id=" | B142: 215141 | C142: " lang="en" sex="m"> | D142: Tribal Psionicist Manifesting (Psychic Warrior) | E142: </entry> | F142: <entry id="215141" lang="en" sex="m">Tribal Psionicist Manifesting (Psychic Warrior)</entry>
A143: <entry id=" | B143: 215142 | C143: " lang="en" sex="m"> | D143: Ambofari Manifesting (Psychic Rogue) | E143: </entry> | F143: <entry id="215142" lang="en" sex="m">Ambofari Manifesting (Psychic Rogue)</entry>
A144: <entry id=" | B144: 215143 | C144: " lang="en" sex="m"> | D144: Auditor Manifesting (Psychic Rogue) | E144: </entry> | F144: =CONCATENATE(A144,B144,C144,D144,E144) -> <entry id="215143" lang="en" sex="m">Auditor Manifesting (Psychic Rogue)</entry>
A145: <entry id=" | B145: 215144 | C145: " lang="en" sex="m"> | D145: Cornac Manifesting (Psychic Rogue) | E145: </entry> | F145: <entry id="215144" lang="en" sex="m">Cornac Manifesting (Psychic Rogue)</entry>
A146: <entry id=" | B146: 215145 | C146: " lang="en" sex="m"> | D146: Dead Heart Interrorgator Manifesting (Psychic Rogue) | E146: </entry> | F146: <entry id="215145" lang="en" sex="m">Dead Heart Interrorgator Manifesting (Psychic Rogue)</entry>
A147: <entry id=" | B147: 215146 | C147: " lang="en" sex="m"> | D147: Drake Guardian Manifesting (Psychic Rogue) | E147: </entry> | F147: <entry id="215146" lang="en" sex="m">Drake Guardian Manifesting (Psychic Rogue)</entry>
A148: <entry id=" | B148: 215147 | C148: " lang="en" sex="m"> | D148: Kreen Slayer Manifesting (Psychic Rogue) | E148: </entry> | F148: <entry id="215147" lang="en" sex="m">Kreen Slayer Manifesting (Psychic Rogue)</entry>
A149: <entry id=" | B149: 215148 | C149: " lang="en" sex="m"> | D149: Master Shipfloater Manifesting (Psychic Rogue) | E149: </entry> | F149: <entry id="215148" lang="en" sex="m">Master Shipfloater Manifesting (Psychic Rogue)</entry>
A150: <entry id=" | B150: 215149 | C150: " lang="en" sex="m"> | D150: Obstinate Soul Manifesting (Psychic Rogue) | E150: </entry> | F150: <entry id="215149" lang="en" sex="m">Obstinate Soul Manifesting (Psychic Rogue)</entry>
A151: <entry id=" | B151: 215150 | C151: " lang="en" sex="m"> | D151: Psiologist Manifesting (Psychic Rogue) | E151: </entry> | F151: <entry id="215150" lang="en" sex="m">Psiologist Manifesting (Psychic Rogue)</entry>
A152: <entry id=" | B152: 215151 | C152: " lang="en" sex="m"> | D152: Scion of the Worm Manifesting (Psychic Rogue) | E152: </entry> | F152: <entry id="215151" lang="en" sex="m">Scion of the Worm Manifesting (Psychic Rogue)</entry>
A153: <entry id=" | B153: 215152 | C153: " lang="en" sex="m"> | D153: Sensei Manifesting (Psychic Rogue) | E153: </entry> | F153: <entry id="215152" lang="en" sex="m">Sensei Manifesting (Psychic Rogue)</entry>
A154: <entry id=" | B154: 215153 | C154: " lang="en" sex="m"> | D154: Tattooist Manifesting (Psychic Rogue) | E154: </entry> | F154: <entry id="215153" lang="en" sex="m">Tattooist Manifesting (Psychic Rogue)</entry>
A155: <entry id=" | B155: 215154 | C155: " lang="en" sex="m"> | D155: Tekchakak Manifesting (Psychic Rogue) | E155: </entry> | F155: <entry id="215154" lang="en" sex="m">Tekchakak Manifesting (Psychic Rogue)</entry>
A156: <entry id=" | B156: 215155 | C156: " lang="en" sex="m"> | D156: Tribal Psionicist Manifesting (Psychic Rogue) | E156: </entry> | F156: <entry id="215155" lang="en" sex="m">Tribal Psionicist Manifesting (Psychic Rogue)</entry>
A157: <entry id=" | B157: 215156 | C157: " lang="en" sex="m"> | D157: Ambofari Manifesting (War Mind) | E157: </entry> | F157: <entry id="215156" lang="en" sex="m">Ambofari Manifesting (War Mind)</entry>
A158: <entry id=" | B158: 215157 | C158: " lang="en" sex="m"> | D158: Auditor Manifesting (War Mind) | E158: </entry> | F158: <entry id="215157" lang="en" sex="m">Auditor Manifesting (War Mind)</entry>
A159: <entry id=" | B159: 215158 | C159: " lang="en" sex="m"> | D159: Cornac Manifesting (War Mind) | E159: </entry> | F159: <entry id="215158" lang="en" sex="m">Cornac Manifesting (War Mind)</entry>
A160: <entry id=" | B160: 215159 | C160: " lang="en" sex="m"> | D160: Dead Heart Interrorgator Manifesting (War Mind) | E160: </entry> | F160: <entry id="215159" lang="en" sex="m">Dead Heart Interrorgator Manifesting (War Mind)</entry>
A161: <entry id=" | B161: 215160 | C161: " lang="en" sex="m"> | D161: Drake Guardian Manifesting (War Mind) | E161: </entry> | F161: <entry id="215160" lang="en" sex="m">Drake Guardian Manifesting (War Mind)</entry>
A162: <entry id=" | B162: 215161 | C162: " lang="en" sex="m"> | D162: Kreen Slayer Manifesting (War Mind) | E162: </entry> | F162: <entry id="215161" lang="en" sex="m">Kreen Slayer Manifesting (War Mind)</entry>
A163: <entry id=" | B163: 215162 | C163: " lang="en" sex="m"> | D163: Master Shipfloater Manifesting (War Mind) | E163: </entry> | F163: <entry id="215162" lang="en" sex="m">Master Shipfloater Manifesting (War Mind)</entry>
A164: <entry id=" | B164: 215163 | C164: " lang="en" sex="m"> | D164: Obstinate Soul Manifesting (War Mind) | E164: </entry> | F164: <entry id="215163" lang="en" sex="m">Obstinate Soul Manifesting (War Mind)</entry>
A165: <entry id=" | B165: 215164 | C165: " lang="en" sex="m"> | D165: Scion of the Worm Manifesting (War Mind) | E165: </entry> | F165: <entry id="215164" lang="en" sex="m">Scion of the Worm Manifesting (War Mind)</entry>
A166: <entry id=" | B166: 215165 | C166: " lang="en" sex="m"> | D166: Sensei Manifesting (War Mind) | E166: </entry> | F166: <entry id="215165" lang="en" sex="m">Sensei Manifesting (War Mind)</entry>
A167: <entry id=" | B167: 215166 | C167: " lang="en" sex="m"> | D167: Tattooist Manifesting (War Mind) | E167: </entry> | F167: <entry id="215166" lang="en" sex="m">Tattooist Manifesting (War Mind)</entry>
A168: <entry id=" | B168: 215167 | C168: " lang="en" sex="m"> | D168: Tekchakak Manifesting (War Mind) | E168: </entry> | F168: <entry id="215167" lang="en" sex="m">Tekchakak Manifesting (War Mind)</entry>
A169: <entry id=" | B169: 215168 | C169: " lang="en" sex="m"> | D169: Tribal Psionicist Manifesting (War Mind) | E169: </entry> | F169: <entry id="215168" lang="en" sex="m">Tribal Psionicist Manifesting (War Mind)</entry>
A170: <entry id=" | B170: 215169 | C170: " lang="en" sex="m"> | D170: Ambofari Manifesting (Wilder) | E170: </entry> | F170: =CONCATENATE(A170,B170,C170,D170,E170) -> <entry id="215169" lang="en" sex="m">Ambofari Manifesting (Wilder)</entry>
A171: <entry id=" | B171: 215170 | C171: " lang="en" sex="m"> | D171: Auditor Manifesting (Wilder) | E171: </entry> | F171: <entry id="215170" lang="en" sex="m">Auditor Manifesting (Wilder)</entry>
A172: <entry id=" | B172: 215171 | C172: " lang="en" sex="m"> | D172: Cornac Manifesting (Wilder) | E172: </entry> | F172: <entry id="215171" lang="en" sex="m">Cornac Manifesting (Wilder)</entry>
A173: <entry id=" | B173: 215172 | C173: " lang="en" sex="m"> | D173: Dead Heart Interrorgator Manifesting (Wilder) | E173: </entry> | F173: <entry id="215172" lang="en" sex="m">Dead Heart Interrorgator Manifesting (Wilder)</entry>
A174: <entry id=" | B174: 215173 | C174: " lang="en" sex="m"> | D174: Drake Guardian Manifesting (Wilder) | E174: </entry> | F174: <entry id="215173" lang="en" sex="m">Drake Guardian Manifesting (Wilder)</entry>
A175: <entry id=" | B175: 215174 | C175: " lang="en" sex="m"> | D175: Kreen Slayer Manifesting (Wilder) | E175: </entry> | F175: <entry id="215174" lang="en" sex="m">Kreen Slayer Manifesting (Wilder)</entry>
A176: <entry id=" | B176: 215175 | C176: " lang="en" sex="m"> | D176: Master Shipfloater Manifesting (Wilder) | E176: </entry> | F176: <entry id="215175" lang="en" sex="m">Master Shipfloater Manifesting (Wilder)</entry>
A177: <entry id=" | B177: 215176 | C177: " lang="en" sex="m"> | D177: Obstinate Soul Manifesting (Wilder) | E177: </entry> | F177: <entry id="215176" lang="en" sex="m">Obstinate Soul Manifesting (Wilder)</entry>
A178: <entry id=" | B178: 215177 | C178: " lang="en" sex="m"> | D178: Psiologist Manifesting (Wilder) | E178: </entry> | F178: <entry id="215177" lang="en" sex="m">Psiologist Manifesting (Wilder)</entry>
A179: <entry id=" | B179: 215178 | C179: " lang="en" sex="m"> | D179: Scion of the Worm Manifesting (Wilder) | E179: </entry> | F179: <entry id="215178" lang="en" sex="m">Scion of the Worm Manifesting (Wilder)</entry>
A180: <entry id=" | B180: 215179 | C180: " lang="en" sex="m"> | D180: Sensei Manifesting (Wilder) | E180: </entry> | F180: <entry id="215179" lang="en" sex="m">Sensei Manifesting (Wilder)</entry>
A181: <entry id=" | B181: 215180 | C181: " lang="en" sex="m"> | D181: Tattooist Manifesting (Wilder) | E181: </entry> | F181: <entry id="215180" lang="en" sex="m">Tattooist Manifesting (Wilder)</entry>
A182: <entry id=" | B182: 215181 | C182: " lang="en" sex="m"> | D182: Tekchakak Manifesting (Wilder) | E182: </entry> | F182: <entry id="215181" lang="en" sex="m">Tekchakak Manifesting (Wilder)</entry>
A183: <entry id=" | B183: 215182 | C183: " lang="en" sex="m"> | D183: Tribal Psionicist Manifesting (Wilder) | E183: </entry> | F183: <entry id="215182" lang="en" sex="m">Tribal Psionicist Manifesting (Wilder)</entry>
A184: <entry id=" | B184: 215183 | C184: " lang="en" sex="m"> | D184: Abjurant Champion Spellcasting (Bard) | E184: </entry> | F184: =CONCATENATE(A184,B184,C184,D184,E184) -> <entry id="215183" lang="en" sex="m">Abjurant Champion Spellcasting (Bard)</entry>
A185: <entry id=" | B185: 215184 | C185: " lang="en" sex="m"> | D185: Arcanist Spellcasting (Bard) | E185: </entry> | F185: <entry id="215184" lang="en" sex="m">Arcanist Spellcasting (Bard)</entry>
A186: <entry id=" | B186: 215185 | C186: " lang="en" sex="m"> | D186: Archmage Spellcasting (Bard) | E186: </entry> | F186: <entry id="215185" lang="en" sex="m">Archmage Spellcasting (Bard)</entry>
A187: <entry id=" | B187: 215186 | C187: " lang="en" sex="m"> | D187: Arcane Trickster Spellcasting (Bard) | E187: </entry> | F187: <entry id="215186" lang="en" sex="m">Arcane Trickster Spellcasting (Bard)</entry>
A188: <entry id=" | B188: 215187 | C188: " lang="en" sex="m"> | D188: Arena Mage Spellcasting (Bard) | E188: </entry> | F188: <entry id="215187" lang="en" sex="m">Arena Mage Spellcasting (Bard)</entry>
A189: <entry id=" | B189: 215188 | C189: " lang="en" sex="m"> | D189: Cerulean Spellcaster (Bard) | E189: </entry> | F189: <entry id="215188" lang="en" sex="m">Cerulean Spellcaster (Bard)</entry>
A190: <entry id=" | B190: 215189 | C190: " lang="en" sex="m"> | D190: Chasseur Spellcasting (Bard) | E190: </entry> | F190: <entry id="215189" lang="en" sex="m">Chasseur Spellcasting (Bard)</entry>
A191: <entry id=" | B191: 215190 | C191: " lang="en" sex="m"> | D191: Cerebremancer Spellcasting (Bard) | E191: </entry> | F191: <entry id="215190" lang="en" sex="m">Cerebremancer Spellcasting (Bard)</entry>
A192: <entry id=" | B192: 215191 | C192: " lang="en" sex="m"> | D192: Dead Heart Interrorgator Spellcasting (Bard) | E192: </entry> | F192: <entry id="215191" lang="en" sex="m">Dead Heart Interrorgator Spellcasting (Bard)</entry>
A193: <entry id=" | B193: 215192 | C193: " lang="en" sex="m"> | D193: Earth Defender Spellcasting (Bard) | E193: </entry> | F193: <entry id="215192" lang="en" sex="m">Earth Defender Spellcasting (Bard)</entry>
A194: <entry id=" | B194: 215193 | C194: " lang="en" sex="m"> | D194: Elemental Savant Spellcasting (Bard) | E194: </entry> | F194: <entry id="215193" lang="en" sex="m">Elemental Savant Spellcasting (Bard)</entry>
A195: <entry id=" | B195: 215194 | C195: " lang="en" sex="m"> | D195: Halfling Protector Spellcasting (Bard) | E195: </entry> | F195: <entry id="215194" lang="en" sex="m">Halfling Protector Spellcasting (Bard)</entry>
A196: <entry id=" | B196: 215195 | C196: " lang="en" sex="m"> | D196: Master Alchemist Spellcasting (Bard) | E196: </entry> | F196: <entry id="215195" lang="en" sex="m">Master Alchemist Spellcasting (Bard)</entry>
A197: <entry id=" | B197: 215196 | C197: " lang="en" sex="m"> | D197: Mystic Theurge Spellcasting (Bard) | E197: </entry> | F197: =CONCATENATE(A197,B197,C197,D197,E197) -> <entry id="215196" lang="en" sex="m">Mystic Theurge Spellcasting (Bard)</entry>
A198: <entry id=" | B198: 215197 | C198: " lang="en" sex="m"> | D198: Necromant Spellcasting (Bard) | E198: </entry> | F198: <entry id="215197" lang="en" sex="m">Necromant Spellcasting (Bard)</entry>
A199: <entry id=" | B199: 215198 | C199: " lang="en" sex="m"> | D199: Pale Master Spellcasting (Bard) | E199: </entry> | F199: <entry id="215198" lang="en" sex="m">Pale Master Spellcasting (Bard)</entry>
A200: <entry id=" | B200: 215199 | C200: " lang="en" sex="m"> | D200: Restorationist Spellcasting (Bard) | E200: </entry> | F200: <entry id="215199" lang="en" sex="m">Restorationist Spellcasting (Bard)</entry>
... 31 more rows

Sheet Marker Feat Descriptions
A1: Name | B1: TLK Description | C1: 2DA Description
A2: Ambofari | B2: 215500 | C2: 16992716
A3: Arcanist | B3: 215501 | C3: 16992717
A4: Arch_Defiler | B4: 215502 | C4: 16992718
A5: Arena_Mage | B5: 215503 | C5: 16992719
A6: Battle_Dancer | B6: 215504 | C6: 16992720
A7: Black_Cassock | B7: 215505 | C7: 16992721
A8: Cerulean | B8: 215506 | C8: 16992722
A9: Chasseur | B9: 215507 | C9: 16992723
A10: Dead_Heart | B10: 215508 | C10: 16992724
A11: Drake_Guardian | B11: 215509 | C11: 16992725
A12: Earth_Defender | B12: 215510 | C12: 16992726
A13: Element_Singer | B13: 215511 | C13: 16992727
A14: Elemental_Master | B14: 215512 | C14: 16992728
A15: Elementalist | B15: 215513 | C15: 16992729
A16: Grove_Master | B16: 215514 | C16: 16992730
A17: Halfling_Protector | B17: 215515 | C17: 16992731
A18: Leech | B18: 215516 | C18: 16992732
A19: Monarchs_Chosen | B19: 215517 | C19: 16992733
A20: Moon_Priest | B20: 215518 | C20: 16992734
A21: Myrmeleon | B21: 215519 | C21: 16992735
A22: Necromant | B22: 215520 | C22: 16992736
A23: Obas_Servant | B23: 215521 | C23: 16992737
A24: Obstinate_Soul | B24: 215522 | C24: 16992738
A25: Restorationist | B25: 215523 | C25: 16992739
A26: Royal_Animator | B26: 215524 | C26: 16992740
A27: Servant_of_Badna | B27: 215525 | C27: 16992741
A28: Shadow_Wizard | B28: 215526 | C28: 16992742
A29: Spirit_Incarnate | B29: 215527 | C29: 16992743
A30: Templar_of_the_Scale | B30: 215528 | C30: 16992744
A31: Veiled_One | B31: 215529 | C31: 16992745
A32: Wife_of_Nibenay | B32: 215530 | C32: 16992746
A33: Yellow_Robe | B33: 215531 | C33: 16992747
A34: AUDITOR | B34: 215532 | C34: 16992748
A35: CORNAC | B35: 215533 | C35: 16992749
A36: KREEN_SLAYER | B36: 215534 | C36: 16992750
A37: MASTER_SHIPFLOATER | B37: 215535 | C37: 16992751
A38: PSIOLOGIST | B38: 215536 | C38: 16992752
A39: SCION_OF_THE_WORM | B39: 215537 | C39: 16992753
A40: SENSEI | B40: 215538 | C40: 16992754
A41: TATTOOIST | B41: 215539 | C41: 16992755
A42: TEKCHAKAK | B42: 215540 | C42: 16992756
A43: TRIBAL_PSIONICIST | B43: 215541 | C43: 16992757

Sheet Sheet5
A1: 2da row | B1: label | C1: Feat Name 2DA | D1: Feat Name TLK
A2: 25000 | B2: FEAT_ARCANIST_SPELLCASTING_ASSASSIN | C2: 16992216 | D2: 215000
A3: 25001 | B3: FEAT_ARENA_MAGE_SPELLCASTING_ASSASSIN | C3: 16992217 | D3: 215001
A4: 25002 | B4: FEAT_CERULEAN_SPELLCASTING_ASSASSIN | C4: 16992218 | D4: 215002
A5: 25003 | B5: FEAT_CHASSEUR_SPELLCASTING_ASSASSIN | C5: 16992219 | D5: 215003
A6: 25004 | B6: FEAT_DEAD_HEART_SPELLCASTING_ASSASSIN | C6: 16992220 | D6: 215004
A7: 25005 | B7: FEAT_HALFLING_PROTECTOR_SPELLCASTING_ASSASSIN | C7: 16992221 | D7: 215005
A8: 25006 | B8: FEAT_NECROMANT_SPELLCASTING_ASSASSIN | C8: 16992222 | D8: 215006
A9: 25007 | B9: FEAT_RESTORATIONIST_SPELLCASTING_ASSASSIN | C9: 16992223 | D9: 215007
A10: 25008 | B10: FEAT_SHADOW_WIZARD_SPELLCASTING_ASSASSIN | C10: 16992224 | D10: 215008
A11: 25009 | B11: FEAT_VEILED_ONE_SPELLCASTING_ASSASSIN | C11: 16992225 | D11: 215009
A12: 25010 | B12: FEAT_AMBOFARI_SPELLCASTING_CLERIC | C12: 16992226 | D12: 215010
A13: 25011 | B13: FEAT_BATTLE_DANCER_SPELLCASTING_CLERIC | C13: 16992227 | D13: 215011
A14: 25012 | B14: FEAT_BLACK_CASSOCK_SPELLCASTING_CLERIC | C14: 16992228 | D14: 215012
A15: 25013 | B15: FEAT_DRAKE_GUARDIAN_SPELLCASTING_CLERIC | C15: 16992229 | D15: 215013
A16: 25014 | B16: FEAT_ELEMENT_SINGER_SPELLCASTING_CLERIC | C16: 16992230 | D16: 215014
A17: 25015 | B17: FEAT_ELEMENTAL_MASTER_SPELLCASTING_CLERIC | C17: 16992231 | D17: 215015
A18: 25016 | B18: FEAT_ELEMENTALIST_SPELLCASTING_CLERIC | C18: 16992232 | D18: 215016
A19: 25017 | B19: FEAT_OBSTINATE_SOUL_SPELLCASTING_CLERIC | C19: 16992233 | D19: 215017
A20: 25018 | B20: FEAT_ABJCHAMP_SPELLCASTING_DEFILER | C20: 16992234 | D20: 215018
A21: 25019 | B21: FEAT_ARCANIST_SPELLCASTING_DEFILER | C21: 16992235 | D21: 215019
A22: 25020 | B22: FEAT_ARCH_DEFILER_SPELLCASTING_DEFILER | C22: 16992236 | D22: 215020
A23: 25021 | B23: FEAT_ARCHMAGE_SPELLCASTING_DEFILER | C23: 16992237 | D23: 215021
A24: 25022 | B24: FEAT_ARCTRICK_SPELLCASTING_DEFILER | C24: 16992238 | D24: 215022
A25: 25023 | B25: FEAT_ARENA_MAGE_SPELLCASTING_DEFILER | C25: 16992239 | D25: 215023
A26: 25024 | B26: FEAT_BONDED_SPELLCASTING_DEFILER | C26: 16992240 | D26: 215024
A27: 25025 | B27: FEAT_CERULEAN_SPELLCASTING_DEFILER | C27: 16992241 | D27: 215025
A28: 25026 | B28: FEAT_CHASSEUR_SPELLCASTING_DEFILER | C28: 16992242 | D28: 215026
A29: 25027 | B29: FEAT_CMANCER_SPELLCASTING_DEFILER | C29: 16992243 | D29: 215027
A30: 25028 | B30: FEAT_DEAD_HEART_SPELLCASTING_DEFILER | C30: 16992244 | D30: 215028
A31: 25029 | B31: FEAT_ELESAVANT_SPELLCASTING_DEFILER | C31: 16992245 | D31: 215029
A32: 25030 | B32: FEAT_LEECH_SPELLCASTING_DEFILER | C32: 16992246 | D32: 215030
A33: 25031 | B33: FEAT_MASTER_ALCHEMIST_SPELLCASTING_DEFILER | C33: 16992247 | D33: 215031
A34: 25032 | B34: FEAT_MONARCHS_CHOSEN_SPELLCASTING_DEFILER | C34: 16992248 | D34: 215032
A35: 25033 | B35: FEAT_MYRMELEON_SPELLCASTING_DEFILER | C35: 16992249 | D35: 215033
A36: 25034 | B36: FEAT_MYSTIC_SPELLCASTING_DEFILER | C36: 16992250 | D36: 215034
A37: 25035 | B37: FEAT_NECROMANT_SPELLCASTING_DEFILER | C37: 16992251 | D37: 215035
A38: 25036 | B38: FEAT_PALEMASTER_SPELLCASTING_DEFILER | C38: 16992252 | D38: 215036
A39: 25037 | B39: FEAT_ROYAL_ANIMATOR_SPELLCASTING_DEFILER | C39: 16992253 | D39: 215037
A40: 25038 | B40: FEAT_SHADOW_WIZARD_SPELLCASTING_DEFILER | C40: 16992254 | D40: 215038
A41: 25039 | B41: FEAT_SPELLSWORD_SPELLCASTING_DEFILER | C41: 16992255 | D41: 215039
A42: 25040 | B42: FEAT_TRUE_NECRO_SPELLCASTING_DEFILER | C42: 16992256 | D42: 215040
A43: 25041 | B43: FEAT_VEILED_ONE_SPELLCASTING_DEFILER | C43: 16992257 | D43: 215041
A44: 25042 | B44: FEAT_VIRTUOSO_SPELLCASTING_DEFILER | C44: 16992258 | D44: 215042
A45: 25043 | B45: FEAT_AMBOFARI_SPELLCASTING_DRUID | C45: 16992259 | D45: 215043
A46: 25044 | B46: FEAT_DRAKE_GUARDIAN_SPELLCASTING_DRUID | C46: 16992260 | D46: 215044
A47: 25045 | B47: FEAT_GROVE_MASTER_SPELLCASTING_DRUID | C47: 16992261 | D47: 215045
A48: 25046 | B48: FEAT_OBSTINATE_SOUL_SPELLCASTING_DRUID | C48: 16992262 | D48: 215046
A49: 25047 | B49: FEAT_SPIRIT_INCARNATE_SPELLCASTING_DRUID | C49: 16992263 | D49: 215047
A50: 25048 | B50: FEAT_AMBOFARI_SPELLCASTING_ELECHAMP | C50: 16992264 | D50: 215048
A51: 25049 | B51: FEAT_BATTLE_DANCER_SPELLCASTING_ELECHAMP | C51: 16992265 | D51: 215049
A52: 25050 | B52: FEAT_BLACK_CASSOCK_SPELLCASTING_ELECHAMP | C52: 16992266 | D52: 215050
A53: 25051 | B53: FEAT_COMBAT_MEDIC_SPELLCASTING_ELECHAMP | C53: 16992267 | D53: 215051
A54: 25052 | B54: FEAT_DRAKE_GUARDIAN_SPELLCASTING_ELECHAMP | C54: 16992268 | D54: 215052
A55: 25053 | B55: FEAT_ELEMENT_SINGER_SPELLCASTING_ELECHAMP | C55: 16992269 | D55: 215053
A56: 25054 | B56: FEAT_ELEMENTALIST_SPELLCASTING_ELECHAMP | C56: 16992270 | D56: 215054
A57: 25055 | B57: FEAT_MYSTIC_THEURGE_SPELLCASTING_ELECHAMP | C57: 16992271 | D57: 215055
A58: 25056 | B58: FEAT_OBSTINATE_SOUL_SPELLCASTING_ELECHAMP | C58: 16992272 | D58: 215056
A59: 25057 | B59: FEAT_OOZEMASTER_SPELLCASTING_ELECHAMP | C59: 16992273 | D59: 215057
A60: 25058 | B60: FEAT_PSYCHIC_THEURGE_SPELLCASTING_ELECHAMP | C60: 16992274 | D60: 215058
A61: 25059 | B61: FEAT_TRUE_NECROMANCER_SPELLCASTING_ELECHAMP | C61: 16992275 | D61: 215059
A62: 25060 | B62: FEAT_WARPRIEST_SPELLCASTING_ELECHAMP | C62: 16992276 | D62: 215060
A63: 25061 | B63: FEAT_ARCANIST_SPELLCASTING_PRESERVER | C63: 16992277 | D63: 215061
A64: 25062 | B64: FEAT_ARENA_MAGE_SPELLCASTING_PRESERVER | C64: 16992278 | D64: 215062
A65: 25063 | B65: FEAT_CERULEAN_SPELLCASTING_PRESERVER | C65: 16992279 | D65: 215063
A66: 25064 | B66: FEAT_CHASSEUR_SPELLCASTING_PRESERVER | C66: 16992280 | D66: 215064
A67: 25065 | B67: FEAT_DEAD_HEART_SPELLCASTING_PRESERVER | C67: 16992281 | D67: 215065
A68: 25066 | B68: FEAT_EARTH_DEFENDER_SPELLCASTING_PRESERVER | C68: 16992282 | D68: 215066
A69: 25067 | B69: FEAT_HALFLING_PROTECTOR_SPELLCASTING_PRESERVER | C69: 16992283 | D69: 215067
A70: 25068 | B70: FEAT_NECROMANT_SPELLCASTING_PRESERVER | C70: 16992284 | D70: 215068
A71: 25069 | B71: FEAT_RESTORATIONIST_SPELLCASTING_PRESERVER | C71: 16992285 | D71: 215069
A72: 25070 | B72: FEAT_SHADOW_WIZARD_SPELLCASTING_PRESERVER | C72: 16992286 | D72: 215070
A73: 25071 | B73: FEAT_VEILED_ONE_SPELLCASTING_PRESERVER | C73: 16992287 | D73: 215071
A74: 25072 | B74: FEAT_AMBOFARI_SPELLCASTING_RANGER | C74: 16992288 | D74: 215072
A75: 25073 | B75: FEAT_BLACK_CASSOCK_SPELLCASTING_RANGER | C75: 16992289 | D75: 215073
A76: 25074 | B76: FEAT_DRAKE_GUARDIAN_SPELLCASTING_RANGER | C76: 16992290 | D76: 215074
A77: 25075 | B77: FEAT_OBSTINATE_SOUL_SPELLCASTING_RANGER | C77: 16992291 | D77: 215075
A78: 25076 | B78: FEAT_SPIRIT_INCARNATE_SPELLCASTING_RANGER | C78: 16992292 | D78: 215076
A79: 25077 | B79: FEAT_ABJCHAMP_SPELLCASTING_SHADOWTEMP | C79: 16992293 | D79: 215077
A80: 25078 | B80: FEAT_ARCANIST_SPELLCASTING_SHADOWTEMP | C80: 16992294 | D80: 215078
A81: 25079 | B81: FEAT_ARCTRICK_SPELLCASTING_SHADOWTEMP | C81: 16992295 | D81: 215079
A82: 25080 | B82: FEAT_ARCHMAGE_SPELLCASTING_SHADOWTEMP | C82: 16992296 | D82: 215080
A83: 25081 | B83: FEAT_ARENA_MAGE_SPELLCASTING_SHADOWTEMP | C83: 16992297 | D83: 215081
A84: 25082 | B84: FEAT_CMANCER_SPELLCASTING_SHADOWTEMP | C84: 16992298 | D84: 215082
A85: 25083 | B85: FEAT_CHASSEUR_SPELLCASTING_SHADOWTEMP | C85: 16992299 | D85: 215083
A86: 25084 | B86: FEAT_DEAD_HEART_SPELLCASTING_SHADOWTEMP | C86: 16992300 | D86: 215084
A87: 25085 | B87: FEAT_ELESAVANT_SPELLCASTING_SHADOWTEMP | C87: 16992301 | D87: 215085
A88: 25086 | B88: FEAT_MASTER_ALCHEMIST_SPELLCASTING_SHADOWTEMP | C88: 16992302 | D88: 215086
A89: 25087 | B89: FEAT_MYSTIC_SPELLCASTING_SHADOWTEMP | C89: 16992303 | D89: 215087
A90: 25088 | B90: FEAT_NECROMANT_SPELLCASTING_SHADOWTEMP | C90: 16992304 | D90: 215088
A91: 25089 | B91: FEAT_PALEMASTER_SPELLCASTING_SHADOWTEMP | C91: 16992305 | D91: 215089
A92: 25090 | B92: FEAT_SHADOW_WIZARD_SPELLCASTING_SHADOWTEMP | C92: 16992306 | D92: 215090
A93: 25091 | B93: FEAT_SPELLSWORD_SPELLCASTING_SHADOWTEMP | C93: 16992307 | D93: 215091
A94: 25092 | B94: FEAT_TRUE_NECRO_SPELLCASTING_SHADOWTEMP | C94: 16992308 | D94: 215092
A95: 25093 | B95: FEAT_VIRTUOSO_SPELLCASTING_SHADOWTEMP | C95: 16992309 | D95: 215093
A96: 25094 | B96: FEAT_AMBOFARI_SPELLCASTING_TEMPLAR | C96: 16992310 | D96: 215094
A97: 25095 | B97: FEAT_COMBAT_MEDIC_SPELLCASTING_TEMPLAR | C97: 16992311 | D97: 215095
A98: 25096 | B98: FEAT_HIEROPHANT_SPELLCASTING_TEMPLAR | C98: 16992312 | D98: 215096
A99: 25097 | B99: FEAT_MOON_PRIEST_SPELLCASTING_TEMPLAR | C99: 16992313 | D99: 215097
A100: 25098 | B100: FEAT_MYSTIC_THEURGE_SPELLCASTING_TEMPLAR | C100: 16992314 | D100: 215098
A101: 25099 | B101: FEAT_OBAS_SERVANT_SPELLCASTING_TEMPLAR | C101: 16992315 | D101: 215099
A102: 25100 | B102: FEAT_OOZEMASTER_SPELLCASTING_TEMPLAR | C102: 16992316 | D102: 215100
A103: 25101 | B103: FEAT_PSYCHIC_THEURGE_SPELLCASTING_TEMPLAR | C103: 16992317 | D103: 215101
A104: 25102 | B104: FEAT_SERVANT_OF_BADNA_SPELLCASTING_TEMPLAR | C104: 16992318 | D104: 215102
A105: 25103 | B105: FEAT_TEMPLAR_OF_THE_SCALE_SPELLCASTING_TEMPLAR | C105: 16992319 | D105: 215103
A106: 25104 | B106: FEAT_TRUE_NECROMANCER_SPELLCASTING_TEMPLAR | C106: 16992320 | D106: 215104
A107: 25105 | B107: FEAT_WARPRIEST_SPELLCASTING_TEMPLAR | C107: 16992321 | D107: 215105
A108: 25106 | B108: FEAT_WIFE_OF_NIBENAY_SPELLCASTING_TEMPLAR | C108: 16992322 | D108: 215106
A109: 25107 | B109: FEAT_YELLOW_ROBE_SPELLCASTING_TEMPLAR | C109: 16992323 | D109: 215107
A110: 25108 | B110: FEAT_AMBOFARI_SPELLCASTING_TEMP_KNIGHT | C110: 16992324 | D110: 215108
A111: 25109 | B111: FEAT_COMBAT_MEDIC_SPELLCASTING_TEMP_KNIGHT | C111: 16992325 | D111: 215109
A112: 25110 | B112: FEAT_MYSTIC_THEURGE_SPELLCASTING_TEMP_KNIGHT | C112: 16992326 | D112: 215110
A113: 25111 | B113: FEAT_OOZEMASTER_SPELLCASTING_TEMP_KNIGHT | C113: 16992327 | D113: 215111
A114: 25112 | B114: FEAT_PSYCHIC_THEURGE_SPELLCASTING_TEMP_KNIGHT | C114: 16992328 | D114: 215112
A115: 25113 | B115: FEAT_WARPRIEST_SPELLCASTING_TEMP_KNIGHT | C115: 16992329 | D115: 215113
A116: 25114 | B116: FEAT_AMBOFARI_MANIFESTING_PSION | C116: 16992330 | D116: 215114
A117: 25115 | B117: FEAT_AUDITOR_MANIFESTING_PSION | C117: 16992331 | D117: 215115
A118: 25116 | B118: FEAT_CORNAC_MANIFESTING_PSION | C118: 16992332 | D118: 215116
A119: 25117 | B119: FEAT_DEAD_HEART_MANIFESTING_PSION | C119: 16992333 | D119: 215117
A120: 25118 | B120: FEAT_DRAKE_GUARDIAN_MANIFESTING_PSION | C120: 16992334 | D120: 215118
A121: 25119 | B121: FEAT_KREEN_SLAYER_MANIFESTING_PSION | C121: 16992335 | D121: 215119
A122: 25120 | B122: FEAT_MASTER_SHIPFLOATER_MANIFESTING_PSION | C122: 16992336 | D122: 215120
A123: 25121 | B123: FEAT_OBSTINATE_SOUL_MANIFESTING_PSION | C123: 16992337 | D123: 215121
A124: 25122 | B124: FEAT_PSIOLOGIST_MANIFESTING_PSION | C124: 16992338 | D124: 215122
A125: 25123 | B125: FEAT_SCION_OF_THE_WORM_MANIFESTING_PSION | C125: 16992339 | D125: 215123
A126: 25124 | B126: FEAT_SENSEI_MANIFESTING_PSION | C126: 16992340 | D126: 215124
A127: 25125 | B127: FEAT_TATTOOIST_MANIFESTING_PSION | C127: 16992341 | D127: 215125
A128: 25126 | B128: FEAT_TEKCHAKAK_MANIFESTING_PSION | C128: 16992342 | D128: 215126
A129: 25127 | B129: FEAT_TRIBAL_PSIONICIST_MANIFESTING_PSION | C129: 16992343 | D129: 215127
A130: 25128 | B130: FEAT_AMBOFARI_MANIFESTING_PSYROGUE | C130: 16992344 | D130: 215128
A131: 25129 | B131: FEAT_AUDITOR_MANIFESTING_PSYROGUE | C131: 16992345 | D131: 215129
A132: 25130 | B132: FEAT_CORNAC_MANIFESTING_PSYROGUE | C132: 16992346 | D132: 215130
A133: 25131 | B133: FEAT_DEAD_HEART_MANIFESTING_PSYROGUE | C133: 16992347 | D133: 215131
A134: 25132 | B134: FEAT_DRAKE_GUARDIAN_MANIFESTING_PSYROGUE | C134: 16992348 | D134: 215132
A135: 25133 | B135: FEAT_KREEN_SLAYER_MANIFESTING_PSYROGUE | C135: 16992349 | D135: 215133
A136: 25134 | B136: FEAT_MASTER_SHIPFLOATER_MANIFESTING_PSYROGUE | C136: 16992350 | D136: 215134
A137: 25135 | B137: FEAT_OBSTINATE_SOUL_MANIFESTING_PSYROGUE | C137: 16992351 | D137: 215135
A138: 25136 | B138: FEAT_PSIOLOGIST_MANIFESTING_PSYROGUE | C138: 16992352 | D138: 215136
A139: 25137 | B139: FEAT_SCION_OF_THE_WORM_MANIFESTING_PSYROGUE | C139: 16992353 | D139: 215137
A140: 25138 | B140: FEAT_SENSEI_MANIFESTING_PSYROGUE | C140: 16992354 | D140: 215138
A141: 25139 | B141: FEAT_TATTOOIST_MANIFESTING_PSYROGUE | C141: 16992355 | D141: 215139
A142: 25140 | B142: FEAT_TEKCHAKAK_MANIFESTING_PSYROGUE | C142: 16992356 | D142: 215140
A143: 25141 | B143: FEAT_TRIBAL_PSIONICIST_MANIFESTING_PSYROGUE | C143: 16992357 | D143: 215141
A144: 25142 | B144: FEAT_AMBOFARI_MANIFESTING_PSYWAR | C144: 16992358 | D144: 215142
A145: 25143 | B145: FEAT_AUDITOR_MANIFESTING_PSYWAR | C145: 16992359 | D145: 215143
A146: 25144 | B146: FEAT_CORNAC_MANIFESTING_PSYWAR | C146: 16992360 | D146: 215144
A147: 25145 | B147: FEAT_DEAD_HEART_MANIFESTING_PSYWAR | C147: 16992361 | D147: 215145
A148: 25146 | B148: FEAT_DRAKE_GUARDIAN_MANIFESTING_PSYWAR | C148: 16992362 | D148: 215146
A149: 25147 | B149: FEAT_KREEN_SLAYER_MANIFESTING_PSYWAR | C149: 16992363 | D149: 215147
A150: 25148 | B150: FEAT_MASTER_SHIPFLOATER_MANIFESTING_PSYWAR | C150: 16992364 | D150: 215148
A151: 25149 | B151: FEAT_OBSTINATE_SOUL_MANIFESTING_PSYWAR | C151: 16992365 | D151: 215149
A152: 25150 | B152: FEAT_PSIOLOGIST_MANIFESTING_PSYWAR | C152: 16992366 | D152: 215150
A153: 25151 | B153: FEAT_SCION_OF_THE_WORM_MANIFESTING_PSYWAR | C153: 16992367 | D153: 215151
A154: 25152 | B154: FEAT_SENSEI_MANIFESTING_PSYWAR | C154: 16992368 | D154: 215152
A155: 25153 | B155: FEAT_TATTOOIST_MANIFESTING_PSYWAR | C155: 16992369 | D155: 215153
A156: 25154 | B156: FEAT_TEKCHAKAK_MANIFESTING_PSYWAR | C156: 16992370 | D156: 215154
A157: 25155 | B157: FEAT_TRIBAL_PSIONICIST_MANIFESTING_PSYWAR | C157: 16992371 | D157: 215155
A158: 25156 | B158: FEAT_AMBOFARI_MANIFESTING_WARMIND | C158: 16992372 | D158: 215156
A159: 25157 | B159: FEAT_AUDITOR_MANIFESTING_WARMIND | C159: 16992373 | D159: 215157
A160: 25158 | B160: FEAT_CORNAC_MANIFESTING_WARMIND | C160: 16992374 | D160: 215158
A161: 25159 | B161: FEAT_DEAD_HEART_MANIFESTING_WARMIND | C161: 16992375 | D161: 215159
A162: 25160 | B162: FEAT_DRAKE_GUARDIAN_MANIFESTING_WARMIND | C162: 16992376 | D162: 215160
A163: 25161 | B163: FEAT_KREEN_SLAYER_MANIFESTING_WARMIND | C163: 16992377 | D163: 215161
A164: 25162 | B164: FEAT_MASTER_SHIPFLOATER_MANIFESTING_WARMIND | C164: 16992378 | D164: 215162
A165: 25163 | B165: FEAT_OBSTINATE_SOUL_MANIFESTING_WARMIND | C165: 16992379 | D165: 215163
A166: 25164 | B166: FEAT_SCION_OF_THE_WORM_MANIFESTING_WARMIND | C166: 16992380 | D166: 215164
A167: 25165 | B167: FEAT_SENSEI_MANIFESTING_WARMIND | C167: 16992381 | D167: 215165
A168: 25166 | B168: FEAT_TATTOOIST_MANIFESTING_WARMIND | C168: 16992382 | D168: 215166
A169: 25167 | B169: FEAT_TEKCHAKAK_MANIFESTING_WARMIND | C169: 16992383 | D169: 215167
A170: 25168 | B170: FEAT_TRIBAL_PSIONICIST_MANIFESTING_WARMIND | C170: 16992384 | D170: 215168
A171: 25169 | B171: FEAT_AMBOFARI_MANIFESTING_WILDER | C171: 16992385 | D171: 215169
A172: 25170 | B172: FEAT_AUDITOR_MANIFESTING_WILDER | C172: 16992386 | D172: 215170
A173: 25171 | B173: FEAT_CORNAC_MANIFESTING_WILDER | C173: 16992387 | D173: 215171
A174: 25172 | B174: FEAT_DEAD_HEART_MANIFESTING_WILDER | C174: 16992388 | D174: 215172
A175: 25173 | B175: FEAT_DRAKE_GUARDIAN_MANIFESTING_WILDER | C175: 16992389 | D175: 215173
A176: 25174 | B176: FEAT_KREEN_SLAYER_MANIFESTING_WILDER | C176: 16992390 | D176: 215174
A177: 25175 | B177: FEAT_MASTER_SHIPFLOATER_MANIFESTING_WILDER | C177: 16992391 | D177: 215175
A178: 25176 | B178: FEAT_OBSTINATE_SOUL_MANIFESTING_WILDER | C178: 16992392 | D178: 215176
A179: 25177 | B179: FEAT_PSIOLOGIST_MANIFESTING_WILDER | C179: 16992393 | D179: 215177
A180: 25178 | B180: FEAT_SCION_OF_THE_WORM_MANIFESTING_WILDER | C180: 16992394 | D180: 215178
A181: 25179 | B181: FEAT_SENSEI_MANIFESTING_WILDER | C181: 16992395 | D181: 215179
A182: 25180 | B182: FEAT_TATTOOIST_MANIFESTING_WILDER | C182: 16992396 | D182: 215180
A183: 25181 | B183: FEAT_TEKCHAKAK_MANIFESTING_WILDER | C183: 16992397 | D183: 215181
A184: 25182 | B184: FEAT_TRIBAL_PSIONICIST_MANIFESTING_WILDER | C184: 16992398 | D184: 215182
A185: 25183 | B185: FEAT_ABCHAMP_SPELLCASTING_ATHBARD | C185: 16992399 | D185: 215183
A186: 25184 | B186: FEAT_ARCANIST_SPELLCASTING_ATHBARD | C186: 16992400 | D186: 215184
A187: 25185 | B187: FEAT_ARCHMAGE_SPELLCASTING_ATHBARD | C187: 16992401 | D187: 215185
A188: 25186 | B188: FEAT_ARCTRICK_SPELLCASTING_ATHBARD | C188: 16992402 | D188: 215186
A189: 25187 | B189: FEAT_ARENA_MAGE_SPELLCASTING_ATHBARD | C189: 16992403 | D189: 215187
A190: 25188 | B190: FEAT_CERULEAN_SPELLCASTING_ATHBARD | C190: 16992404 | D190: 215188
A191: 25189 | B191: FEAT_CHASSEUR_SPELLCASTING_ATHBARD | C191: 16992405 | D191: 215189
A192: 25190 | B192: FEAT_CMANCER_SPELLCASTING_ATHBARD | C192: 16992406 | D192: 215190
A193: 25191 | B193: FEAT_DEAD_HEART_SPELLCASTING_ATHBARD | C193: 16992407 | D193: 215191
A194: 25192 | B194: FEAT_EARTH_DEFENDER_SPELLCASTING_ATHBARD | C194: 16992408 | D194: 215192
A195: 25193 | B195: FEAT_ELESAVANT_SPELLCASTING_ATHBARD | C195: 16992409 | D195: 215193
A196: 25194 | B196: FEAT_HALFLING_PROTECTOR_SPELLCASTING_ATHBARD | C196: 16992410 | D196: 215194
A197: 25195 | B197: FEAT_MASTER_ALCHEMIST_SPELLCASTING_ATHBARD | C197: 16992411 | D197: 215195
A198: 25196 | B198: FEAT_MYSTIC_SPELLCASTING_ATHBARD | C198: 16992412 | D198: 215196
A199: 25197 | B199: FEAT_NECROMANT_SPELLCASTING_ATHBARD | C199: 16992413 | D199: 215197
A200: 25198 | B200: FEAT_PALEMASTER_SPELLCASTING_ATHBARD | C200: 16992414 | D200: 215198
... 31 more rows

Sheet Sheet1
A1: const int | B1: CLASS_TYPE_AMBOFARI | C1: = | D1: -1 | F1: =CONCATENATE(A1,B1,C1,D1) -> const int CLASS_TYPE_AMBOFARI = -1
A2: const int | B2: CLASS_TYPE_ARCANIST | C2: = | D2: -1 | F2: =CONCATENATE(A2,B2,C2,D2) -> const int CLASS_TYPE_ARCANIST = -1
A3: const int | B3: CLASS_TYPE_ARCH_DEFILER | C3: = | D3: -1 | F3: const int CLASS_TYPE_ARCH_DEFILER = -1
A4: const int | B4: CLASS_TYPE_ARENA_MAGE | C4: = | D4: -1 | F4: const int CLASS_TYPE_ARENA_MAGE = -1
A5: const int | B5: CLASS_TYPE_AUDITOR | C5: = | D5: -1 | F5: const int CLASS_TYPE_AUDITOR = -1 | P5: const int CLASS_TYPE_AMBOFARI = -1
A6: const int | B6: CLASS_TYPE_BATTLE_DANCER | C6: = | D6: -1 | F6: const int CLASS_TYPE_BATTLE_DANCER = -1 | P6: const int CLASS_TYPE_ARCANIST = -1
A7: const int | B7: CLASS_TYPE_BLACK_CASSOCK | C7: = | D7: -1 | F7: const int CLASS_TYPE_BLACK_CASSOCK = -1 | P7: const int CLASS_TYPE_ARCH_DEFILER = -1
A8: const int | B8: CLASS_TYPE_CERULEAN | C8: = | D8: -1 | F8: const int CLASS_TYPE_CERULEAN = -1 | P8: const int CLASS_TYPE_ARENA_MAGE = -1
A9: const int | B9: CLASS_TYPE_CHASSEUR | C9: = | D9: -1 | F9: const int CLASS_TYPE_CHASSEUR = -1 | P9: const int CLASS_TYPE_AUDITOR = -1
A10: const int | B10: CLASS_TYPE_CORNAC | C10: = | D10: -1 | F10: const int CLASS_TYPE_CORNAC = -1 | P10: const int CLASS_TYPE_BATTLE_DANCER = -1
A11: const int | B11: CLASS_TYPE_DEAD_HEART | C11: = | D11: -1 | F11: const int CLASS_TYPE_DEAD_HEART = -1 | P11: const int CLASS_TYPE_BLACK_CASSOCK = -1
A12: const int | B12: CLASS_TYPE_DRAKE_GUARDIAN | C12: = | D12: -1 | F12: const int CLASS_TYPE_DRAKE_GUARDIAN = -1 | P12: const int CLASS_TYPE_CERULEAN = -1
A13: const int | B13: CLASS_TYPE_EARTH_DEFENDER | C13: = | D13: -1 | F13: const int CLASS_TYPE_EARTH_DEFENDER = -1 | P13: const int CLASS_TYPE_CHASSEUR = -1
A14: const int | B14: CLASS_TYPE_ELEMENTALIST | C14: = | D14: -1 | F14: const int CLASS_TYPE_ELEMENTALIST = -1 | P14: const int CLASS_TYPE_CORNAC = -1
A15: const int | B15: CLASS_TYPE_ELEMENTAL_MASTER | C15: = | D15: -1 | F15: const int CLASS_TYPE_ELEMENTAL_MASTER = -1 | P15: const int CLASS_TYPE_DEAD_HEART = -1
A16: const int | B16: CLASS_TYPE_ELEMENT_SINGER | C16: = | D16: -1 | F16: const int CLASS_TYPE_ELEMENT_SINGER = -1 | P16: const int CLASS_TYPE_DRAKE_GUARDIAN = -1
A17: const int | B17: CLASS_TYPE_GROVE_MASTER | C17: = | D17: -1 | F17: const int CLASS_TYPE_GROVE_MASTER = -1 | P17: const int CLASS_TYPE_EARTH_DEFENDER = -1
A18: const int | B18: CLASS_TYPE_HALFLING_PROTECTOR | C18: = | D18: -1 | F18: const int CLASS_TYPE_HALFLING_PROTECTOR = -1 | P18: const int CLASS_TYPE_ELEMENTALIST = -1
A19: const int | B19: CLASS_TYPE_KREEN_SLAYER | C19: = | D19: -1 | F19: const int CLASS_TYPE_KREEN_SLAYER = -1 | P19: const int CLASS_TYPE_ELEMENTAL_MASTER = -1
A20: const int | B20: CLASS_TYPE_LEECH | C20: = | D20: -1 | F20: const int CLASS_TYPE_LEECH = -1 | P20: const int CLASS_TYPE_ELEMENT_SINGER = -1
A21: const int | B21: CLASS_TYPE_MASTER_SHIPFLOATER | C21: = | D21: -1 | F21: const int CLASS_TYPE_MASTER_SHIPFLOATER = -1 | P21: const int CLASS_TYPE_GROVE_MASTER = -1
A22: const int | B22: CLASS_TYPE_MONARCHS_CHOSEN | C22: = | D22: -1 | F22: const int CLASS_TYPE_MONARCHS_CHOSEN = -1 | P22: const int CLASS_TYPE_HALFLING_PROTECTOR = -1
A23: const int | B23: CLASS_TYPE_MOON_PRIEST | C23: = | D23: -1 | F23: const int CLASS_TYPE_MOON_PRIEST = -1 | P23: const int CLASS_TYPE_KREEN_SLAYER = -1
A24: const int | B24: CLASS_TYPE_MYRMELEON | C24: = | D24: -1 | F24: const int CLASS_TYPE_MYRMELEON = -1 | P24: const int CLASS_TYPE_LEECH = -1
A25: const int | B25: CLASS_TYPE_NECROMANT | C25: = | D25: -1 | F25: const int CLASS_TYPE_NECROMANT = -1 | P25: const int CLASS_TYPE_MASTER_SHIPFLOATER = -1
A26: const int | B26: CLASS_TYPE_OBAS_SERVANT | C26: = | D26: -1 | F26: const int CLASS_TYPE_OBAS_SERVANT = -1 | P26: const int CLASS_TYPE_MONARCHS_CHOSEN = -1
A27: const int | B27: CLASS_TYPE_OBSTINATE_SOUL | C27: = | D27: -1 | F27: const int CLASS_TYPE_OBSTINATE_SOUL = -1 | P27: const int CLASS_TYPE_MOON_PRIEST = -1
A28: const int | B28: CLASS_TYPE_PSIOLOGIST | C28: = | D28: -1 | F28: const int CLASS_TYPE_PSIOLOGIST = -1 | P28: const int CLASS_TYPE_MYRMELEON = -1
A29: const int | B29: CLASS_TYPE_RESTORATIONIST | C29: = | D29: -1 | F29: const int CLASS_TYPE_RESTORATIONIST = -1 | P29: const int CLASS_TYPE_NECROMANT = -1
A30: const int | B30: CLASS_TYPE_ROYAL_ANIMATOR | C30: = | D30: -1 | F30: const int CLASS_TYPE_ROYAL_ANIMATOR = -1 | P30: const int CLASS_TYPE_OBAS_SERVANT = -1
A31: const int | B31: CLASS_TYPE_SCION_OF_THE_WORM | C31: = | D31: -1 | F31: const int CLASS_TYPE_SCION_OF_THE_WORM = -1 | P31: const int CLASS_TYPE_OBSTINATE_SOUL = -1
A32: const int | B32: CLASS_TYPE_SENSEI | C32: = | D32: -1 | F32: const int CLASS_TYPE_SENSEI = -1 | P32: const int CLASS_TYPE_PSIOLOGIST = -1
A33: const int | B33: CLASS_TYPE_SERVANT_OF_BADNA | C33: = | D33: -1 | F33: const int CLASS_TYPE_SERVANT_OF_BADNA = -1 | P33: const int CLASS_TYPE_RESTORATIONIST = -1
A34: const int | B34: CLASS_TYPE_SHADOW_WIZARD | C34: = | D34: -1 | F34: const int CLASS_TYPE_SHADOW_WIZARD = -1 | P34: const int CLASS_TYPE_ROYAL_ANIMATOR = -1
A35: const int | B35: CLASS_TYPE_SPELLSWORD | C35: = | D35: -1 | F35: const int CLASS_TYPE_SPELLSWORD = -1 | P35: const int CLASS_TYPE_SCION_OF_THE_WORM = -1
A36: const int | B36: CLASS_TYPE_SPIRIT_INCARNATE | C36: = | D36: -1 | F36: const int CLASS_TYPE_SPIRIT_INCARNATE = -1 | P36: const int CLASS_TYPE_SENSEI = -1
A37: const int | B37: CLASS_TYPE_TATTOOIST | C37: = | D37: -1 | F37: const int CLASS_TYPE_TATTOOIST = -1 | P37: const int CLASS_TYPE_SERVANT_OF_BADNA = -1
A38: const int | B38: CLASS_TYPE_TEKCHAKAK | C38: = | D38: -1 | F38: const int CLASS_TYPE_TEKCHAKAK = -1 | P38: const int CLASS_TYPE_SHADOW_WIZARD = -1
A39: const int | B39: CLASS_TYPE_TEMPLAR_OF_THE_SCALE | C39: = | D39: -1 | F39: const int CLASS_TYPE_TEMPLAR_OF_THE_SCALE = -1 | P39: const int CLASS_TYPE_SPELLSWORD = -1
A40: const int | B40: CLASS_TYPE_TRIBAL_PSIONICIST | C40: = | D40: -1 | F40: const int CLASS_TYPE_TRIBAL_PSIONICIST = -1 | P40: const int CLASS_TYPE_SPIRIT_INCARNATE = -1
A41: const int | B41: CLASS_TYPE_VEILED_ONE | C41: = | D41: -1 | F41: const int CLASS_TYPE_VEILED_ONE = -1 | P41: const int CLASS_TYPE_TATTOOIST = -1
A42: const int | B42: CLASS_TYPE_WIFE_OF_NIBENAY | C42: = | D42: -1 | F42: const int CLASS_TYPE_WIFE_OF_NIBENAY = -1 | P42: const int CLASS_TYPE_TEKCHAKAK = -1
A43: const int | B43: CLASS_TYPE_YELLOW_ROBE | C43: = | D43: -1 | F43: const int CLASS_TYPE_YELLOW_ROBE = -1 | P43: const int CLASS_TYPE_TEMPLAR_OF_THE_SCALE = -1
P44: const int CLASS_TYPE_TRIBAL_PSIONICIST = -1
P45: const int CLASS_TYPE_VEILED_ONE = -1
P46: const int CLASS_TYPE_WIFE_OF_NIBENAY = -1
P47: const int CLASS_TYPE_YELLOW_ROBE = -1

Sheet Sheet2
